Workbook

Sheet Macros Required
B1: ="Macros Required - "&title -> Macros Required - Forecast Budget
B3: Macros must be enabled for this application to function.
B5: Please refer to your spreadsheet Help for details on how to enable macros.
B7: Suitability must be independently assessed and use indicates acceptance of any and all associated risk.

Sheet Welcome
B1: Forecast Budget
B3: Build: 20220225 by bizpep.com
B5: Shift Scheduler will build a roster structure to your specifications, allocate staff automatically, and generate a printable roster, all at the click of a button. It is compact and user friendly allowing you to add staff and shifts (maximum 150) with ease. Default values for continuous shifts mean that the only shift data required is the start date/time and length for the first shift, everything else is automated.
B7: To start use the sheet tabs to select the Input sheet.
B8: Input is in the blue cells. Non-input cells are protected to maintain formula integrity.
B9: help
B11: =IF(Scratch!B55=TRUE,"Current license subscriptions can be managed directly from your PayPal account.","In evaluation mode functionality is restriced.") -> In evaluation mode functionality is restriced.
B12: =IF(Scratch!B55=TRUE,"On renewal new License Details will be emailed. You can purchase at new license at:","To fully enable this application please purchase a license at:") -> To fully enable this application please purchase a license at:
B13: https://bizpep.com/forecastbudget.html?display=license
B14: =IF(Scratch!B55=TRUE,"Current license details fully enable your application","License Details are sent by email, on reciept input license details to fully enable your application.") -> License Details are sent by email, on reciept input license details to fully enable your application.
B17: Application License Details:
B18: Licensed Email Address:
B19: License Code:
B20: License Valid to Date: | C20: =IF(Scratch!B55=TRUE,Scratch!C55,"Not Licensed, for Evaluation Only.") -> Not Licensed, for Evaluation Only.
B22: Suitability must be independently assessed and use indicates acceptance of any and all associated risk.
B50: =IF(Scratch!B55=TRUE,"Licensed to "&Welcome!C11, Welcome!C13&" In evaluation mode functionality is limited.") -> In evaluation mode functionality is limited.
B53: =IFERROR(AND(ISTEXT(Welcome!C18),LEN(Welcome!C18)>6),FALSE) -> FALSE
B54: =IFERROR(AND(ISNUMBER(INT(Welcome!C19)),LEN(Welcome!C19)>8),FALSE) -> FALSE | C54: =IFERROR(Welcome!C19/Scratch!E57/E41,FALSE) -> FALSE
C58: =MID(Welcome!$C$18,B58,1) -> 
C59: =MID(Welcome!$C$18,B59,1) -> 
C60: =MID(Welcome!$C$18,B60,1) -> 
C61: =MID(Welcome!$C$18,B61,1) -> 
C62: =MID(Welcome!$C$18,B62,1) -> 
C63: =MID(Welcome!$C$18,B63,1) -> 
C64: =MID(Welcome!$C$18,B64,1) -> 
C65: =MID(Welcome!$C$18,B65,1) -> 
C66: =MID(Welcome!$C$18,B66,1) -> 
C67: =MID(Welcome!$C$18,B67,1) -> 
C68: =MID(Welcome!$C$18,B68,1) -> 
C69: =MID(Welcome!$C$18,B69,1) -> 
C70: =MID(Welcome!$C$18,B70,1) -> 
C71: =MID(Welcome!$C$18,B71,1) -> 
C72: =MID(Welcome!$C$18,B72,1) -> 
C73: =MID(Welcome!$C$18,B73,1) -> 
C74: =MID(Welcome!$C$18,B74,1) -> 
C75: =MID(Welcome!$C$18,B75,1) -> 
C76: =MID(Welcome!$C$18,B76,1) -> 
C77: =MID(Welcome!$C$18,B77,1) -> 
C78: =MID(Welcome!$C$18,B78,1) -> 
C79: =MID(Welcome!$C$18,B79,1) -> 
C80: =MID(Welcome!$C$18,B80,1) -> 
C81: =MID(Welcome!$C$18,B81,1) -> 
C82: =MID(Welcome!$C$18,B82,1) -> 
C83: =MID(Welcome!$C$18,B83,1) -> 
C84: =MID(Welcome!$C$18,B84,1) -> 
C85: =MID(Welcome!$C$18,B85,1) -> 
C86: =MID(Welcome!$C$18,B86,1) -> 
C87: =MID(Welcome!$C$18,B87,1) -> 
C88: =MID(Welcome!$C$18,B88,1) -> 
C89: =MID(Welcome!$C$18,B89,1) -> 
C90: =MID(Welcome!$C$18,B90,1) -> 
C91: =MID(Welcome!$C$18,B91,1) -> 
C92: =MID(Welcome!$C$18,B92,1) -> 
C93: =MID(Welcome!$C$18,B93,1) -> 
C94: =MID(Welcome!$C$18,B94,1) -> 
C95: =MID(Welcome!$C$18,B95,1) -> 
C96: =MID(Welcome!$C$18,B96,1) -> 
C97: =MID(Welcome!$C$18,B97,1) -> 
C98: =MID(Welcome!$C$18,B98,1) -> 
C99: =MID(Welcome!$C$18,B99,1) -> 
C100: =MID(Welcome!$C$18,B100,1) -> 
C101: =MID(Welcome!$C$18,B101,1) -> 
C102: =MID(Welcome!$C$18,B102,1) -> 
C103: =MID(Welcome!$C$18,B103,1) -> 
C104: =MID(Welcome!$C$18,B104,1) -> 
C105: =MID(Welcome!$C$18,B105,1) -> 
C106: =MID(Welcome!$C$18,B106,1) -> 
C107: =MID(Welcome!$C$18,B107,1) -> 

Sheet Input
B5: ="Input - " &title -> Input - Forecast Budget
B6: Blue cells require input. View comments by positioning your mouse over the red marker cell or click the hyperlink for the
B7: Instruction Sheet
B9: Current Operating Performance Data | D9: This section reviews current business performance for a full year.
B11: Business Name or Identifier | C11: Acme Widgets | F11: This appears on the Output Sheets.
B13: Business Revenue | C13: 500000 | D13: Annual business revenue for the current year.
B15: Expenses | C15: Monetary | D15: =+IF(C15=B81,B82,B81) -> Percent | E15: Set the Expense Input as Monetary or Percent.
B16: Variable Costs | E16: Annual costs that vary with the level of revenue.
B17: Materials & Supplies | C17: 10000 | D17: =+IF(D$15=B$82,C17/C$13*100,C17/100*C$13) -> 2 | E17: Cost of items used in the product/service or resold.
B18: Labor excluding Owner | C18: 200000 | D18: 40 | E18: Cost of labor including all benefits and add-ons.
B19: Labor Owner | C19: 50000 | D19: 10 | E19: Cost of an employee who could replace the owner.
B20: Distribution | C20: 20000 | D20: 4 | E20: Cost to get the product/service to the consumer.
B21: Marketing | C21: 10000 | D21: 2 | E21: Cost of marketing and promotion.
B22: Other | C22: 20000 | D22: 4 | E22: Any other costs incurred in the product/service.
B23: Total Variable Costs | C23: =SUM(C17:C22) -> 310000 | D23: 62 | E23: Total Variable Costs and the % of Revenue
B24: Fixed Costs | E24: Annual costs that do not vary with revenue.
B25: Location | C25: 40000 | D25: =+IF(D$15=B$82,C25/C$13*100,C25/100*C$13) -> 8 | E25: Cost of rent, utilities etc. Exclude ownership costs.
B26: Administration | C26: 30000 | D26: 6 | E26: Cost of administration supplies and requirements.
B27: Labor excluding Owner | C27: 50000 | D27: 10 | E27: Cost of labor including all benefits and add-ons.
B28: Labor Owner | C28: 10000 | D28: 2 | E28: Cost of an employee who could replace the owner.
B29: Interest Costs | C29: 0 | D29: 0 | E29: Interest component of loans.
B30: Other | C30: 0 | D30: 0 | E30: Any other overhead costs not already included.
B31: Total Fixed Costs | C31: =SUM(C25:C30) -> 130000 | D31: 26 | E31: Total Fixed Costs and the % of Revenue.
B32: Operating Surplus | C32: =+IF(C$15=B$82,100-C23-C31,C13-C23-C31) -> 60000 | D32: 12 | E32: Operating surplus before taxation.
B33: Owner Cash Flow | C33: =+C32+C28+C19 -> 120000 | D33: 24 | E33: Operating surplus to owner including wages.
B36: Forecast Data | D36: Input Relative Indicators to build a 3 Year Forecast.
B38: Relative Indicator | C38: Year 1 | D38: Year 2 | E38: Year 3 | F38: Indicators are Relative to the prior year.
B39: Level of Competition | C39: 1.03 | D39: 1 | E39: 0.97 | F39: >100=Inc, <100=Dec Competition.
B40: Market Strength | C40: 1.05 | D40: 1 | E40: 1 | F40: >100=Inc, <100=Dec Market Strength.
B41: Materials & Supplies Costs | C41: 1.05 | D41: 1.05 | E41: 1 | F41: >100=Inc, <100=Dec base Costs.
B42: Labor Costs | C42: 1 | D42: 1.03 | E42: 1.05 | F42: >100=Inc, <100=Dec base Costs.
B43: Interest Rates | C43: 1 | D43: 1.05 | E43: 0.95 | F43: >100=Inc, <100=Dec base Interest.
B44: Business Market Position | C44: 1.1 | D44: 1.05 | E44: 1.03 | F44: >100=Inc, <100=Dec Business Position.
B45: Variable Cost Efficiency | C45: 1.03 | D45: 1.05 | E45: 1 | F45: >100=Inc, <100=Dec Variable Efficiency.
B46: Fixed Cost Efficiency | C46: 1 | D46: 1.02 | E46: 1.05 | F46: >100=Inc, <100=Dec Fixed Efficiency.
B48: Fixed Cost Flow-on | C48: 0.25 | D48: The % increase in Fixed Costs for each 100% increase in revenue.
B50: Owners Time Commitment to Business | C50: 1 | D50: Input the percentage of work hours applied to the business.
B51: Replacement Value of Business Assets | C51: 100000 | D51: What is the value of business assets excluding property.
B52: Life of Assets (years) | C52: 8 | D52: What is the average life of the assets?
B54: Sheet List
B55: Summary forecast data is included on the Sensitivity Analysis Sheet where you can test the sensitivity of your forecast. Details are in tabular form on the Results Sheets and graphical form on the Chart Sheets. To build your Budget input the revenue Percentage Contribution for each month and the first month of your budget in the Budget by Month Master. This will produce a full 12 month budget table and a Budget by Month Master Chart. You can then refine this on the Budget by Month sheet to build your final budget. To view comments position your mouse over the red marker cell or click the hyperlink to access the Instruction Sheet. To display Sheets click the associated button or tab.
B56: Sheet List
B57: Sensitivity Analysis
B58: Expected Results
B59: Optimistic Results
B60: Pessimistic Results
B61: Forecast Revenue Chart
B62: Forecast Surplus Chart
B63: Forecast Return Chart
B64: Operating Surplus Chart
B65: Budget by Month Master
B66: Budget by Month Master Chart
B67: Budget by Month
B68: Budget by Month Chart
B81: Monetary
B82: Percent

Sheet Sensitivity Analysis
B5: Sensitivity Analysis
B6: To test the sensitivity of your forecast input adjustment percentages in the blue cells. Green cells provide Optimistic results, yellow cells Expected, and tan cells Pessimistic. An Output Summary is provided at the bottom of this sheet.
B7: Optimistic, improve the variation of all Relative Indicators by | E7: 0.2
B8: Pessimistic, degrade the variation of all Relative Indicators by | E8: 0.2
C9: Current Year | D9: Year 1 | E9: Year 2 | F9: Year 3 | G9: 3 Year Average
B10: =+Worksheet!B5 -> Business Revenue
B11: Optimistic | C11: =+Worksheet!K5 -> 500000 | D11: =+Worksheet!L5 -> 579687.5 | E11: =+Worksheet!M5 -> 614468.75 | F11: =+Worksheet!N5 -> 660362.6815 | G11: =+Worksheet!O5 -> 618172.9772
B12: Expected | C12: =+Worksheet!C5 -> 500000 | D12: =+Worksheet!D5 -> 560679.6117 | E12: =+Worksheet!E5 -> 588713.5922 | F12: =+Worksheet!F5 -> 625128.866 | G12: =+Worksheet!G5 -> 591507.3566
B13: Pessimistic | C13: =+Worksheet!R5 -> 500000 | D13: =+Worksheet!S5 -> 542084.9421 | E13: =+Worksheet!T5 -> 563768.3398 | F13: =+Worksheet!U5 -> 591494.6516 | G13: =+Worksheet!V5 -> 565782.6445
B14: =+Worksheet!B43 -> Operating Surplus
B15: Optimistic | C15: =+Worksheet!K43 -> 60000 | D15: =+Worksheet!L43 -> 97031.03885 | E15: =+Worksheet!M43 -> 122621.1434 | F15: =+Worksheet!N43 -> 129747.9721 | G15: =+Worksheet!O43 -> 116466.7181
B16: Expected | C16: =+Worksheet!C43 -> 60000 | D16: =+Worksheet!D43 -> 88694.62249 | E16: =+Worksheet!E43 -> 106169.5907 | F16: =+Worksheet!F43 -> 105371.8746 | G16: =+Worksheet!G43 -> 100078.6959
B17: Pessimistic | C17: =+Worksheet!R43 -> 60000 | D17: =+Worksheet!S43 -> 80604.54875 | E17: =+Worksheet!T43 -> 90428.21164 | F17: =+Worksheet!U43 -> 82385.72831 | G17: =+Worksheet!V43 -> 84472.82957
B18: =+Worksheet!B90 -> Business Return
B19: Optimistic | C19: =+Worksheet!K49 -> 47500 | D19: =+Worksheet!L49 -> 84032.99198 | E19: =+Worksheet!M49 -> 109405.7137 | F19: =+Worksheet!N49 -> 116245.7054 | G19: =+Worksheet!O49 -> 103228.137
B20: Expected | C20: =+Worksheet!C49 -> 47500 | D20: =+Worksheet!D49 -> 75815.37492 | E20: =+Worksheet!E49 -> 93115.13073 | F20: =+Worksheet!F49 -> 92089.81914 | G20: =+Worksheet!G49 -> 87006.77493
B21: Pessimistic | C21: =+Worksheet!R49 -> 47500 | D21: =+Worksheet!S49 -> 67841.51786 | E21: =+Worksheet!T49 -> 77529.65952 | F21: =+Worksheet!U49 -> 69313.88674 | G21: =+Worksheet!V49 -> 71561.68804
B22: Summary
B23: The 3 Year Average Expected Business Return is | C23: =+G20 -> 87006.77493 | D23: per year.
B24: Sensitivity Analysis indicates a Return high of | C24: =+G19 -> 103228.137 | D24: to a low of | E24: =+G21 -> 71561.68804 | F24: per year.

Sheet Expected Results
B2: Expected Results
B3: =Worksheet!B2 -> Expected Forecast
B4: =Worksheet!B3 -> Acme Widgets
C5: =Worksheet!C4 -> Current Year | D5: =Worksheet!D4 -> Year 1 | E5: =Worksheet!E4 -> Year 2 | F5: =Worksheet!F4 -> Year 3 | G5: =Worksheet!G4 -> 3 Year Average
B6: =Worksheet!B5 -> Business Revenue | C6: =Worksheet!C5 -> 500000 | D6: =Worksheet!D5 -> 560679.6117 | E6: =Worksheet!E5 -> 588713.5922 | F6: =Worksheet!F5 -> 625128.866 | G6: =Worksheet!G5 -> 591507.3566
B7: =Worksheet!B6 -> Expenses
B8: =Worksheet!B7 -> Variable Costs
B9: =Worksheet!B8 -> Materials & Supplies | C9: =Worksheet!C8 -> 10000 | D9: =Worksheet!D8 -> 11431.33189 | E9: =Worksheet!E8 -> 12002.89848 | F9: =Worksheet!F8 -> 12745.34581 | G9: =Worksheet!G8 -> 12059.85873
B10: =Worksheet!B9 -> % Revenue | C10: =Worksheet!C9 -> 0.02 | D10: =Worksheet!D9 -> 0.02038834951 | E10: =Worksheet!E9 -> 0.02038834951 | F10: =Worksheet!F9 -> 0.02038834951 | G10: =Worksheet!G9 -> 0.02038834951
B11: =Worksheet!B10 -> Labor excluding Owner | C11: =Worksheet!C10 -> 200000 | D11: =Worksheet!D10 -> 222477.9668 | E11: =Worksheet!E10 -> 229085.7617 | F11: =Worksheet!F10 -> 258404.2503 | G11: =Worksheet!G10 -> 236655.9929
B12: =Worksheet!B11 -> % Revenue | C12: =Worksheet!C11 -> 0.4 | D12: =Worksheet!D11 -> 0.3968005296 | E12: =Worksheet!E11 -> 0.3891293912 | F12: =Worksheet!F11 -> 0.4133615713 | G12: =Worksheet!G11 -> 0.4000896866
B13: =Worksheet!B12 -> Labor Owner | C13: =Worksheet!C12 -> 50000 | D13: =Worksheet!D12 -> 49696.60194 | E13: =Worksheet!E12 -> 51254.04412 | F13: =Worksheet!F12 -> 54160.18269 | G13: =Worksheet!G12 -> 51703.60958
B14: =Worksheet!B13 -> % Revenue | C14: =Worksheet!C13 -> 0.1 | D14: =Worksheet!D13 -> 0.08863636364 | E14: =Worksheet!E13 -> 0.08706108504 | F14: =Worksheet!F13 -> 0.0866384287 | G14: =Worksheet!G13 -> 0.08740991807
B15: =Worksheet!B14 -> Distribution | C15: =Worksheet!C14 -> 20000 | D15: =Worksheet!D14 -> 21773.9655 | E15: =Worksheet!E14 -> 21773.9655 | F15: =Worksheet!F14 -> 23120.80873 | G15: =Worksheet!G14 -> 22222.91324
B16: =Worksheet!B15 -> % Revenue | C16: =Worksheet!C15 -> 0.04 | D16: =Worksheet!D15 -> 0.03883495146 | E16: =Worksheet!E15 -> 0.03698566805 | F16: =Worksheet!F15 -> 0.03698566805 | G16: =Worksheet!G15 -> 0.03756996932
B17: =Worksheet!B16 -> Marketing | C17: =Worksheet!C16 -> 10000 | D17: =Worksheet!D16 -> 10886.98275 | E17: =Worksheet!E16 -> 10886.98275 | F17: =Worksheet!F16 -> 11560.40436 | G17: =Worksheet!G16 -> 11111.45662
B18: =Worksheet!B17 -> % Revenue | C18: =Worksheet!C17 -> 0.02 | D18: =Worksheet!D17 -> 0.01941747573 | E18: =Worksheet!E17 -> 0.01849283403 | F18: =Worksheet!F17 -> 0.01849283403 | G18: =Worksheet!G17 -> 0.01878498466
B19: =Worksheet!B18 -> Other | C19: =Worksheet!C18 -> 20000 | D19: =Worksheet!D18 -> 21773.9655 | E19: =Worksheet!E18 -> 21773.9655 | F19: =Worksheet!F18 -> 23120.80873 | G19: =Worksheet!G18 -> 22222.91324
B20: =Worksheet!B19 -> % Revenue | C20: =Worksheet!C19 -> 0.04 | D20: =Worksheet!D19 -> 0.03883495146 | E20: =Worksheet!E19 -> 0.03698566805 | F20: =Worksheet!F19 -> 0.03698566805 | G20: =Worksheet!G19 -> 0.03756996932
B21: =Worksheet!B20 -> Total Variable Costs | C21: =Worksheet!C20 -> 310000 | D21: =Worksheet!D20 -> 338040.8144 | E21: =Worksheet!E20 -> 346777.6181 | F21: =Worksheet!F20 -> 383111.8006 | G21: =Worksheet!G20 -> 355976.7444
B22: =Worksheet!B21 -> Total Variable Costs % | C22: =Worksheet!C21 -> 0.62 | D22: =Worksheet!D21 -> 0.6029126214 | E22: =Worksheet!E21 -> 0.5890429958 | F22: =Worksheet!F21 -> 0.6128525196 | G22: =Worksheet!G21 -> 0.6018128775
B23: =Worksheet!B22 -> Gross Profit | C23: =Worksheet!C22 -> 190000 | D23: =Worksheet!D22 -> 222638.7972 | E23: =Worksheet!E22 -> 241935.9742 | F23: =Worksheet!F22 -> 242017.0654 | G23: =Worksheet!G22 -> 235530.6123
B24: =Worksheet!B23 -> Gross Profit % | C24: =Worksheet!C23 -> 0.38 | D24: =Worksheet!D23 -> 0.3970873786 | E24: =Worksheet!E23 -> 0.4109570042 | F24: =Worksheet!F23 -> 0.3871474804 | G24: =Worksheet!G23 -> 0.3981871225
B25: =Worksheet!B24 -> Mark-up Equivalent | C25: =Worksheet!C24 -> 0.6129032258 | D25: =Worksheet!D24 -> 0.6586151369 | E25: =Worksheet!E24 -> 0.6976689428 | F25: =Worksheet!F24 -> 0.6317139409 | G25: =Worksheet!G24 -> 0.6616460653
B26: =Worksheet!B25 -> Fixed Costs
B27: =Worksheet!B26 -> Location | C27: =Worksheet!C26 -> 40000 | D27: =Worksheet!D26 -> 41213.59223 | E27: =Worksheet!E26 -> 41774.27184 | F27: =Worksheet!F26 -> 42502.57732 | G27: =Worksheet!G26 -> 41830.14713
B28: =Worksheet!B27 -> % Revenue | C28: =Worksheet!C27 -> 0.08 | D28: =Worksheet!D27 -> 0.07350649351 | E28: =Worksheet!E27 -> 0.07095856524 | F28: =Worksheet!F27 -> 0.06799010513 | G28: =Worksheet!G27 -> 0.07071788147
B29: =Worksheet!B28 -> Administration | C29: =Worksheet!C28 -> 30000 | D29: =Worksheet!D28 -> 30910.19417 | E29: =Worksheet!E28 -> 30716.37636 | F29: =Worksheet!F28 -> 29763.70961 | G29: =Worksheet!G28 -> 30463.42671
B30: =Worksheet!B29 -> % Revenue | C30: =Worksheet!C29 -> 0.06 | D30: =Worksheet!D29 -> 0.05512987013 | E30: =Worksheet!E29 -> 0.05217541562 | F30: =Worksheet!F29 -> 0.04761211844 | G30: =Worksheet!G29 -> 0.05150134884
B31: =Worksheet!B30 -> Labor excluding Owner | C31: =Worksheet!C30 -> 50000 | D31: =Worksheet!D30 -> 51516.99029 | E31: =Worksheet!E30 -> 52729.77941 | F31: =Worksheet!F30 -> 53649.08657 | G31: =Worksheet!G30 -> 52631.95209
B32: =Worksheet!B31 -> % Revenue | C32: =Worksheet!C31 -> 0.1 | D32: =Worksheet!D31 -> 0.09188311688 | E32: =Worksheet!E31 -> 0.08956779682 | F32: =Worksheet!F31 -> 0.08582084349 | G32: =Worksheet!G31 -> 0.08897937025
B33: =Worksheet!B32 -> Labor Owner | C33: =Worksheet!C32 -> 10000 | D33: =Worksheet!D32 -> 10303.39806 | E33: =Worksheet!E32 -> 10545.95588 | F33: =Worksheet!F32 -> 10729.81731 | G33: =Worksheet!G32 -> 10526.39042
B34: =Worksheet!B33 -> % Revenue | C34: =Worksheet!C33 -> 0.02 | D34: =Worksheet!D33 -> 0.01837662338 | E34: =Worksheet!E33 -> 0.01791355936 | F34: =Worksheet!F33 -> 0.0171641687 | G34: =Worksheet!G33 -> 0.01779587405
B35: =Worksheet!B34 -> Interest Costs | C35: =Worksheet!C34 -> 0 | D35: =Worksheet!D34 -> 0 | E35: =Worksheet!E34 -> 0 | F35: =Worksheet!F34 -> 0 | G35: =Worksheet!G34 -> 0
B36: =Worksheet!B35 -> % Revenue | C36: =Worksheet!C35 -> 0 | D36: =Worksheet!D35 -> 0 | E36: =Worksheet!E35 -> 0 | F36: =Worksheet!F35 -> 0 | G36: =Worksheet!G35 -> 0
B37: =Worksheet!B36 -> Other | C37: =Worksheet!C36 -> 0 | D37: =Worksheet!D36 -> 0 | E37: =Worksheet!E36 -> 0 | F37: =Worksheet!F36 -> 0 | G37: =Worksheet!G36 -> 0
B38: =Worksheet!B37 -> % Revenue | C38: =Worksheet!C37 -> 0 | D38: =Worksheet!D37 -> 0 | E38: =Worksheet!E37 -> 0 | F38: =Worksheet!F37 -> 0 | G38: =Worksheet!G37 -> 0
B39: =Worksheet!B38 -> Total Fixed Costs | C39: =Worksheet!C38 -> 130000 | D39: =Worksheet!D38 -> 133944.1748 | E39: =Worksheet!E38 -> 135766.3835 | F39: =Worksheet!F38 -> 136645.1908 | G39: =Worksheet!G38 -> 135451.9164
B40: =Worksheet!B39 -> Total Fixed Costs % | C40: =Worksheet!C39 -> 0.26 | D40: =Worksheet!D39 -> 0.2388961039 | E40: =Worksheet!E39 -> 0.230615337 | F40: =Worksheet!F39 -> 0.2185872358 | G40: =Worksheet!G39 -> 0.2289944746
B42: =Worksheet!B41 -> Total Expenses | C42: =Worksheet!C41 -> 440000 | D42: =Worksheet!D41 -> 471984.9892 | E42: =Worksheet!E41 -> 482544.0016 | F42: =Worksheet!F41 -> 519756.9914 | G42: =Worksheet!G41 -> 491428.6607
B44: =Worksheet!B43 -> Operating Surplus | C44: =Worksheet!C43 -> 60000 | D44: =Worksheet!D43 -> 88694.62249 | E44: =Worksheet!E43 -> 106169.5907 | F44: =Worksheet!F43 -> 105371.8746 | G44: =Worksheet!G43 -> 100078.6959
B45: =Worksheet!B44 -> Operating Surplus % | C45: =Worksheet!C44 -> 0.12 | D45: =Worksheet!D44 -> 0.1581912747 | E45: =Worksheet!E44 -> 0.1803416671 | F45: =Worksheet!F44 -> 0.1685602446 | G45: =Worksheet!G44 -> 0.1691926479
B47: =Worksheet!B46 -> LESS
B48: =Worksheet!B47 -> Depreciation Allowance | C48: =Worksheet!C47 -> 12500 | D48: =Worksheet!D47 -> 12879.24757 | E48: =Worksheet!E47 -> 13054.45995 | F48: =Worksheet!F47 -> 13282.05541 | G48: =Worksheet!G47 -> 13071.92098
B50: =Worksheet!B49 -> Business Return | C50: =Worksheet!C49 -> 47500 | D50: =Worksheet!D49 -> 75815.37492 | E50: =Worksheet!E49 -> 93115.13073 | F50: =Worksheet!F49 -> 92089.81914 | G50: =Worksheet!G49 -> 87006.77493
B51: =Worksheet!B50 -> Business Return % | C51: =Worksheet!C50 -> 0.095 | D51: =Worksheet!D50 -> 0.1352204955 | E51: =Worksheet!E50 -> 0.1581671155 | F51: =Worksheet!F50 -> 0.1473133367 | G51: =Worksheet!G50 -> 0.1470933099

Sheet Optimistic Results
B2: Optimistic Results
B3: =Worksheet!J2 -> Optimistic Forecast improved by | C3: =Worksheet!K2 -> 0.2
B4: =Worksheet!J3 -> Acme Widgets
C5: =Worksheet!K4 -> Current Year | D5: =Worksheet!L4 -> Year 1 | E5: =Worksheet!M4 -> Year 2 | F5: =Worksheet!N4 -> Year 3 | G5: =Worksheet!O4 -> 3 Year Average
B6: =Worksheet!J5 -> Business Revenue | C6: =Worksheet!K5 -> 500000 | D6: =Worksheet!L5 -> 579687.5 | E6: =Worksheet!M5 -> 614468.75 | F6: =Worksheet!N5 -> 660362.6815 | G6: =Worksheet!O5 -> 618172.9772
B7: =Worksheet!J6 -> Expenses
B8: =Worksheet!J7 -> Variable Costs
B9: =Worksheet!J8 -> Materials & Supplies | C9: =Worksheet!K8 -> 10000 | D9: =Worksheet!L8 -> 11750.4223 | E9: =Worksheet!M8 -> 12337.94341 | F9: =Worksheet!N8 -> 13259.44956 | G9: =Worksheet!O8 -> 12449.27176
B10: =Worksheet!J9 -> % Revenue | C10: =Worksheet!K9 -> 0.02 | D10: =Worksheet!L9 -> 0.02027027027 | E10: =Worksheet!M9 -> 0.02007904131 | F10: =Worksheet!N9 -> 0.02007904131 | G10: =Worksheet!O9 -> 0.02013881586
B11: =Worksheet!J10 -> Labor excluding Owner | C11: =Worksheet!K10 -> 200000 | D11: =Worksheet!L10 -> 230170.397 | E11: =Worksheet!M10 -> 235320.7776 | F11: =Worksheet!N10 -> 265969.2734 | G11: =Worksheet!O10 -> 243820.1493
B12: =Worksheet!J11 -> % Revenue | C12: =Worksheet!K11 -> 0.4 | D12: =Worksheet!L11 -> 0.3970594449 | E12: =Worksheet!M11 -> 0.382966225 | F12: =Worksheet!N11 -> 0.4027624226 | G12: =Worksheet!O11 -> 0.3944205883
B13: =Worksheet!J12 -> Labor Owner | C13: =Worksheet!K12 -> 50000 | D13: =Worksheet!L12 -> 49601.5625 | E13: =Worksheet!M12 -> 51165.70892 | F13: =Worksheet!N12 -> 54229.8967 | G13: =Worksheet!O12 -> 51665.72271
B14: =Worksheet!J13 -> % Revenue | C14: =Worksheet!K13 -> 0.1 | D14: =Worksheet!L13 -> 0.08556603774 | E14: =Worksheet!M13 -> 0.08326820351 | F14: =Worksheet!N13 -> 0.08212138302 | G14: =Worksheet!O13 -> 0.08357809968
B15: =Worksheet!J14 -> Distribution | C15: =Worksheet!K14 -> 20000 | D15: =Worksheet!L14 -> 22381.75676 | E15: =Worksheet!M14 -> 22381.75676 | F15: =Worksheet!N14 -> 24053.42324 | G15: =Worksheet!O14 -> 22938.97892
B16: =Worksheet!J15 -> % Revenue | C16: =Worksheet!K15 -> 0.04 | D16: =Worksheet!L15 -> 0.03861003861 | E16: =Worksheet!M15 -> 0.03642456473 | F16: =Worksheet!N15 -> 0.03642456473 | G16: =Worksheet!O15 -> 0.03710770248
B17: =Worksheet!J16 -> Marketing | C17: =Worksheet!K16 -> 10000 | D17: =Worksheet!L16 -> 11190.87838 | E17: =Worksheet!M16 -> 11190.87838 | F17: =Worksheet!N16 -> 12026.71162 | G17: =Worksheet!O16 -> 11469.48946
B18: =Worksheet!J17 -> % Revenue | C18: =Worksheet!K17 -> 0.02 | D18: =Worksheet!L17 -> 0.01930501931 | E18: =Worksheet!M17 -> 0.01821228236 | F18: =Worksheet!N17 -> 0.01821228236 | G18: =Worksheet!O17 -> 0.01855385124
B19: =Worksheet!J18 -> Other | C19: =Worksheet!K18 -> 20000 | D19: =Worksheet!L18 -> 22381.75676 | E19: =Worksheet!M18 -> 22381.75676 | F19: =Worksheet!N18 -> 24053.42324 | G19: =Worksheet!O18 -> 22938.97892
B20: =Worksheet!J19 -> % Revenue | C20: =Worksheet!K19 -> 0.04 | D20: =Worksheet!L19 -> 0.03861003861 | E20: =Worksheet!M19 -> 0.03642456473 | F20: =Worksheet!N19 -> 0.03642456473 | G20: =Worksheet!O19 -> 0.03710770248
B21: =Worksheet!J20 -> Total Variable Costs | C21: =Worksheet!K20 -> 310000 | D21: =Worksheet!L20 -> 347476.7736 | E21: =Worksheet!M20 -> 354778.8218 | F21: =Worksheet!N20 -> 393592.1778 | G21: =Worksheet!O20 -> 365282.5911
B22: =Worksheet!J21 -> Total Variable Costs % | C22: =Worksheet!K21 -> 0.62 | D22: =Worksheet!L21 -> 0.5994208494 | E22: =Worksheet!M21 -> 0.5773748816 | F22: =Worksheet!N21 -> 0.5960242588 | G22: =Worksheet!O21 -> 0.59090676
B23: =Worksheet!J22 -> Gross Profit | C23: =Worksheet!K22 -> 190000 | D23: =Worksheet!L22 -> 232210.7264 | E23: =Worksheet!M22 -> 259689.9282 | F23: =Worksheet!N22 -> 266770.5038 | G23: =Worksheet!O22 -> 252890.3861
B24: =Worksheet!J23 -> Gross Profit % | C24: =Worksheet!K23 -> 0.38 | D24: =Worksheet!L23 -> 0.4005791506 | E24: =Worksheet!M23 -> 0.4226251184 | F24: =Worksheet!N23 -> 0.4039757412 | G24: =Worksheet!O23 -> 0.40909324
B25: =Worksheet!J24 -> Mark-up Equivalent | C25: =Worksheet!K24 -> 0.6129032258 | D25: =Worksheet!L24 -> 0.6682769726 | E25: =Worksheet!M24 -> 0.7319769734 | F25: =Worksheet!N24 -> 0.6777840588 | G25: =Worksheet!O24 -> 0.6923143678
B26: =Worksheet!J25 -> Fixed Costs
B27: =Worksheet!J26 -> Location | C27: =Worksheet!K26 -> 40000 | D27: =Worksheet!L26 -> 41593.75 | E27: =Worksheet!M26 -> 42289.375 | F27: =Worksheet!N26 -> 43207.25363 | G27: =Worksheet!O26 -> 42363.45954
B28: =Worksheet!J27 -> % Revenue | C28: =Worksheet!K27 -> 0.08 | D28: =Worksheet!L27 -> 0.07175202156 | E28: =Worksheet!M27 -> 0.06882266185 | F28: =Worksheet!N27 -> 0.06542958111 | G28: =Worksheet!O27 -> 0.06853010582
B29: =Worksheet!J28 -> Administration | C29: =Worksheet!K28 -> 30000 | D29: =Worksheet!L28 -> 31195.3125 | E29: =Worksheet!M28 -> 30973.66333 | F29: =Worksheet!N28 -> 29854.65822 | G29: =Worksheet!O28 -> 30674.54468
B30: =Worksheet!J29 -> % Revenue | C30: =Worksheet!K29 -> 0.06 | D30: =Worksheet!L29 -> 0.05381401617 | E30: =Worksheet!M29 -> 0.05040722304 | F30: =Worksheet!N29 -> 0.04520948724 | G30: =Worksheet!O29 -> 0.04962129666
B31: =Worksheet!J30 -> Labor excluding Owner | C31: =Worksheet!K30 -> 50000 | D31: =Worksheet!L30 -> 51992.1875 | E31: =Worksheet!M30 -> 53171.45538 | F31: =Worksheet!N30 -> 53300.51648 | G31: =Worksheet!O30 -> 52821.38646
B32: =Worksheet!J31 -> % Revenue | C32: =Worksheet!K31 -> 0.1 | D32: =Worksheet!L31 -> 0.08969002695 | E32: =Worksheet!M31 -> 0.08653239955 | F32: =Worksheet!N31 -> 0.08071400455 | G32: =Worksheet!O31 -> 0.08544758248
B33: =Worksheet!J32 -> Labor Owner | C33: =Worksheet!K32 -> 10000 | D33: =Worksheet!L32 -> 10398.4375 | E33: =Worksheet!M32 -> 10634.29108 | F33: =Worksheet!N32 -> 10660.1033 | G33: =Worksheet!O32 -> 10564.27729
B34: =Worksheet!J33 -> % Revenue | C34: =Worksheet!K33 -> 0.02 | D34: =Worksheet!L33 -> 0.01793800539 | E34: =Worksheet!M33 -> 0.01730647991 | F34: =Worksheet!N33 -> 0.01614280091 | G34: =Worksheet!O33 -> 0.0170895165
B35: =Worksheet!J34 -> Interest Costs | C35: =Worksheet!K34 -> 0 | D35: =Worksheet!L34 -> 0 | E35: =Worksheet!M34 -> 0 | F35: =Worksheet!N34 -> 0 | G35: =Worksheet!O34 -> 0
B36: =Worksheet!J35 -> % Revenue | C36: =Worksheet!K35 -> 0 | D36: =Worksheet!L35 -> 0 | E36: =Worksheet!M35 -> 0 | F36: =Worksheet!N35 -> 0 | G36: =Worksheet!O35 -> 0
B37: =Worksheet!J36 -> Other | C37: =Worksheet!K36 -> 0 | D37: =Worksheet!L36 -> 0 | E37: =Worksheet!M36 -> 0 | F37: =Worksheet!N36 -> 0 | G37: =Worksheet!O36 -> 0
B38: =Worksheet!J37 -> % Revenue | C38: =Worksheet!K37 -> 0 | D38: =Worksheet!L37 -> 0 | E38: =Worksheet!M37 -> 0 | F38: =Worksheet!N37 -> 0 | G38: =Worksheet!O37 -> 0
B39: =Worksheet!J38 -> Total Fixed Costs | C39: =Worksheet!K38 -> 130000 | D39: =Worksheet!L38 -> 135179.6875 | E39: =Worksheet!M38 -> 137068.7848 | F39: =Worksheet!N38 -> 137022.5316 | G39: =Worksheet!O38 -> 136423.668
B40: =Worksheet!J39 -> Total Fixed Costs % | C40: =Worksheet!K39 -> 0.26 | D40: =Worksheet!L39 -> 0.2331940701 | E40: =Worksheet!M39 -> 0.2230687643 | F40: =Worksheet!N39 -> 0.2074958738 | G40: =Worksheet!O39 -> 0.2206885015
B42: =Worksheet!J41 -> Total Expenses | C42: =Worksheet!K41 -> 440000 | D42: =Worksheet!L41 -> 482656.4611 | E42: =Worksheet!M41 -> 491847.6066 | F42: =Worksheet!N41 -> 530614.7094 | G42: =Worksheet!O41 -> 501706.259
B44: =Worksheet!J43 -> Operating Surplus | C44: =Worksheet!K43 -> 60000 | D44: =Worksheet!L43 -> 97031.03885 | E44: =Worksheet!M43 -> 122621.1434 | F44: =Worksheet!N43 -> 129747.9721 | G44: =Worksheet!O43 -> 116466.7181
B45: =Worksheet!J44 -> Operating Surplus % | C45: =Worksheet!K44 -> 0.12 | D45: =Worksheet!L44 -> 0.1673850805 | E45: =Worksheet!M44 -> 0.199556354 | F45: =Worksheet!N44 -> 0.1964798674 | G45: =Worksheet!O44 -> 0.1884047385
B47: =Worksheet!J46 -> LESS
B48: =Worksheet!J47 -> Depreciation Allowance | C48: =Worksheet!K47 -> 12500 | D48: =Worksheet!L47 -> 12998.04688 | E48: =Worksheet!M47 -> 13215.42969 | F48: =Worksheet!N47 -> 13502.26676 | G48: =Worksheet!O47 -> 13238.58111
B50: =Worksheet!J49 -> Business Return | C50: =Worksheet!K49 -> 47500 | D50: =Worksheet!L49 -> 84032.99198 | E50: =Worksheet!M49 -> 109405.7137 | F50: =Worksheet!N49 -> 116245.7054 | G50: =Worksheet!O49 -> 103228.137
B51: =Worksheet!J50 -> Business Return % | C51: =Worksheet!K50 -> 0.095 | D51: =Worksheet!L50 -> 0.1449625738 | E51: =Worksheet!M50 -> 0.1780492722 | F51: =Worksheet!N50 -> 0.1760331233 | G51: =Worksheet!O50 -> 0.1669890805

Sheet Pessimistic Results
B2: Pessimistic Results
B3: =Worksheet!Q2 -> Pessimistic Forecast degraded by | C3: =Worksheet!R2 -> 0.2
B4: =Worksheet!Q3 -> Acme Widgets
C5: =Worksheet!R4 -> Current Year | D5: =Worksheet!S4 -> Year 1 | E5: =Worksheet!T4 -> Year 2 | F5: =Worksheet!U4 -> Year 3 | G5: =Worksheet!V4 -> 3 Year Average
B6: =Worksheet!Q5 -> Business Revenue | C6: =Worksheet!R5 -> 500000 | D6: =Worksheet!S5 -> 542084.9421 | E6: =Worksheet!T5 -> 563768.3398 | F6: =Worksheet!U5 -> 591494.6516 | G6: =Worksheet!V5 -> 565782.6445
B7: =Worksheet!Q6 -> Expenses
B8: =Worksheet!Q7 -> Variable Costs
B9: =Worksheet!Q8 -> Materials & Supplies | C9: =Worksheet!R8 -> 10000 | D9: =Worksheet!S8 -> 11116.97635 | E9: =Worksheet!T8 -> 11672.82517 | F9: =Worksheet!U8 -> 12246.89854 | G9: =Worksheet!V8 -> 11678.90002
B10: =Worksheet!Q9 -> % Revenue | C10: =Worksheet!R9 -> 0.02 | D10: =Worksheet!S9 -> 0.0205078125 | E10: =Worksheet!T9 -> 0.020705003 | F10: =Worksheet!U9 -> 0.020705003 | G10: =Worksheet!V9 -> 0.02064202593
B11: =Worksheet!Q10 -> Labor excluding Owner | C11: =Worksheet!R10 -> 200000 | D11: =Worksheet!S10 -> 214900.3378 | E11: =Worksheet!T10 -> 222879.7805 | F11: =Worksheet!U10 -> 250882.6618 | G11: =Worksheet!V10 -> 229554.26
B12: =Worksheet!Q11 -> % Revenue | C12: =Worksheet!R11 -> 0.4 | D12: =Worksheet!S11 -> 0.3964329594 | E12: =Worksheet!T11 -> 0.3953392994 | F12: =Worksheet!U11 -> 0.4241503472 | G12: =Worksheet!V11 -> 0.4057287057
B13: =Worksheet!Q12 -> Labor Owner | C13: =Worksheet!R12 -> 50000 | D13: =Worksheet!S12 -> 49789.57529 | E13: =Worksheet!T12 -> 51338.96954 | F13: =Worksheet!U12 -> 54084.55131 | G13: =Worksheet!V12 -> 51737.69871
B14: =Worksheet!Q13 -> % Revenue | C14: =Worksheet!R13 -> 0.1 | D14: =Worksheet!S13 -> 0.0918482906 | E14: =Worksheet!T13 -> 0.0910639458 | F14: =Worksheet!U13 -> 0.09143709274 | G14: =Worksheet!V13 -> 0.09144447823
B15: =Worksheet!Q14 -> Distribution | C15: =Worksheet!R14 -> 20000 | D15: =Worksheet!S14 -> 21175.19305 | E15: =Worksheet!T14 -> 21175.19305 | F15: =Worksheet!U14 -> 22216.59599 | G15: =Worksheet!V14 -> 21522.32736
B16: =Worksheet!Q15 -> % Revenue | C16: =Worksheet!R15 -> 0.04 | D16: =Worksheet!S15 -> 0.0390625 | E16: =Worksheet!T15 -> 0.03756009615 | F16: =Worksheet!U15 -> 0.03756009615 | G16: =Worksheet!V15 -> 0.03803992147
B17: =Worksheet!Q16 -> Marketing | C17: =Worksheet!R16 -> 10000 | D17: =Worksheet!S16 -> 10587.59653 | E17: =Worksheet!T16 -> 10587.59653 | F17: =Worksheet!U16 -> 11108.29799 | G17: =Worksheet!V16 -> 10761.16368
B18: =Worksheet!Q17 -> % Revenue | C18: =Worksheet!R17 -> 0.02 | D18: =Worksheet!S17 -> 0.01953125 | E18: =Worksheet!T17 -> 0.01878004808 | F18: =Worksheet!U17 -> 0.01878004808 | G18: =Worksheet!V17 -> 0.01901996073
B19: =Worksheet!Q18 -> Other | C19: =Worksheet!R18 -> 20000 | D19: =Worksheet!S18 -> 21175.19305 | E19: =Worksheet!T18 -> 21175.19305 | F19: =Worksheet!U18 -> 22216.59599 | G19: =Worksheet!V18 -> 21522.32736
B20: =Worksheet!Q19 -> % Revenue | C20: =Worksheet!R19 -> 0.04 | D20: =Worksheet!S19 -> 0.0390625 | E20: =Worksheet!T19 -> 0.03756009615 | F20: =Worksheet!U19 -> 0.03756009615 | G20: =Worksheet!V19 -> 0.03803992147
B21: =Worksheet!Q20 -> Total Variable Costs | C21: =Worksheet!R20 -> 310000 | D21: =Worksheet!S20 -> 328744.8721 | E21: =Worksheet!T20 -> 338829.5578 | F21: =Worksheet!U20 -> 372755.6016 | G21: =Worksheet!V20 -> 346776.6772
B22: =Worksheet!Q21 -> Total Variable Costs % | C22: =Worksheet!R21 -> 0.62 | D22: =Worksheet!S21 -> 0.6064453125 | E22: =Worksheet!T21 -> 0.6010084886 | F22: =Worksheet!U21 -> 0.6301926833 | G22: =Worksheet!V21 -> 0.6129150135
B23: =Worksheet!Q22 -> Gross Profit | C23: =Worksheet!R22 -> 190000 | D23: =Worksheet!S22 -> 213340.07 | E23: =Worksheet!T22 -> 224938.782 | F23: =Worksheet!U22 -> 218739.0499 | G23: =Worksheet!V22 -> 219005.9673
B24: =Worksheet!Q23 -> Gross Profit % | C24: =Worksheet!R23 -> 0.38 | D24: =Worksheet!S23 -> 0.3935546875 | E24: =Worksheet!T23 -> 0.3989915114 | F24: =Worksheet!U23 -> 0.3698073167 | G24: =Worksheet!V23 -> 0.3870849865
B25: =Worksheet!Q24 -> Mark-up Equivalent | C25: =Worksheet!R24 -> 0.6129032258 | D25: =Worksheet!S24 -> 0.6489533011 | E25: =Worksheet!T24 -> 0.6638700102 | F25: =Worksheet!U24 -> 0.5868162651 | G25: =Worksheet!V24 -> 0.6315475685
B26: =Worksheet!Q25 -> Fixed Costs
B27: =Worksheet!Q26 -> Location | C27: =Worksheet!R26 -> 40000 | D27: =Worksheet!S26 -> 40841.69884 | E27: =Worksheet!T26 -> 41275.3668 | F27: =Worksheet!U26 -> 41829.89303 | G27: =Worksheet!V26 -> 41315.65289
B28: =Worksheet!Q27 -> % Revenue | C28: =Worksheet!R27 -> 0.08 | D28: =Worksheet!S27 -> 0.07534188034 | E28: =Worksheet!T27 -> 0.07321334648 | F28: =Worksheet!U27 -> 0.07071897087 | G28: =Worksheet!V27 -> 0.07302389582
B29: =Worksheet!Q28 -> Administration | C29: =Worksheet!R28 -> 30000 | D29: =Worksheet!S28 -> 30631.27413 | E29: =Worksheet!T28 -> 30469.02076 | F29: =Worksheet!U28 -> 29690.73646 | G29: =Worksheet!V28 -> 30263.67712
B30: =Worksheet!Q29 -> % Revenue | C30: =Worksheet!R29 -> 0.06 | D30: =Worksheet!S29 -> 0.05650641026 | E30: =Worksheet!T29 -> 0.0540452853 | F30: =Worksheet!U29 -> 0.05019611992 | G30: =Worksheet!V29 -> 0.05348993543
B31: =Worksheet!Q30 -> Labor excluding Owner | C31: =Worksheet!R30 -> 50000 | D31: =Worksheet!S30 -> 51052.12355 | E31: =Worksheet!T30 -> 52305.15231 | F31: =Worksheet!U30 -> 54027.24345 | G31: =Worksheet!V30 -> 52461.50644
B32: =Worksheet!Q31 -> % Revenue | C32: =Worksheet!R31 -> 0.1 | D32: =Worksheet!S31 -> 0.09417735043 | E32: =Worksheet!T31 -> 0.09277773976 | F32: =Worksheet!U31 -> 0.09134020621 | G32: =Worksheet!V31 -> 0.09272378174
B33: =Worksheet!Q32 -> Labor Owner | C33: =Worksheet!R32 -> 10000 | D33: =Worksheet!S32 -> 10210.42471 | E33: =Worksheet!T32 -> 10461.03046 | F33: =Worksheet!U32 -> 10805.44869 | G33: =Worksheet!V32 -> 10492.30129
B34: =Worksheet!Q33 -> % Revenue | C34: =Worksheet!R33 -> 0.02 | D34: =Worksheet!S33 -> 0.01883547009 | E34: =Worksheet!T33 -> 0.01855554795 | F34: =Worksheet!U33 -> 0.01826804124 | G34: =Worksheet!V33 -> 0.01854475635
B35: =Worksheet!Q34 -> Interest Costs | C35: =Worksheet!R34 -> 0 | D35: =Worksheet!S34 -> 0 | E35: =Worksheet!T34 -> 0 | F35: =Worksheet!U34 -> 0 | G35: =Worksheet!V34 -> 0
B36: =Worksheet!Q35 -> % Revenue | C36: =Worksheet!R35 -> 0 | D36: =Worksheet!S35 -> 0 | E36: =Worksheet!T35 -> 0 | F36: =Worksheet!U35 -> 0 | G36: =Worksheet!V35 -> 0
B37: =Worksheet!Q36 -> Other | C37: =Worksheet!R36 -> 0 | D37: =Worksheet!S36 -> 0 | E37: =Worksheet!T36 -> 0 | F37: =Worksheet!U36 -> 0 | G37: =Worksheet!V36 -> 0
B38: =Worksheet!Q37 -> % Revenue | C38: =Worksheet!R37 -> 0 | D38: =Worksheet!S37 -> 0 | E38: =Worksheet!T37 -> 0 | F38: =Worksheet!U37 -> 0 | G38: =Worksheet!V37 -> 0
B39: =Worksheet!Q38 -> Total Fixed Costs | C39: =Worksheet!R38 -> 130000 | D39: =Worksheet!S38 -> 132735.5212 | E39: =Worksheet!T38 -> 134510.5703 | F39: =Worksheet!U38 -> 136353.3216 | G39: =Worksheet!V38 -> 134533.1377
B40: =Worksheet!Q39 -> Total Fixed Costs % | C40: =Worksheet!R39 -> 0.26 | D40: =Worksheet!S39 -> 0.2448611111 | E40: =Worksheet!T39 -> 0.2385919195 | F40: =Worksheet!U39 -> 0.2305233382 | G40: =Worksheet!V39 -> 0.2377823693
B42: =Worksheet!Q41 -> Total Expenses | C42: =Worksheet!R41 -> 440000 | D42: =Worksheet!S41 -> 461480.3933 | E42: =Worksheet!T41 -> 473340.1281 | F42: =Worksheet!U41 -> 509108.9232 | G42: =Worksheet!V41 -> 481309.8149
B44: =Worksheet!Q43 -> Operating Surplus | C44: =Worksheet!R43 -> 60000 | D44: =Worksheet!S43 -> 80604.54875 | E44: =Worksheet!T43 -> 90428.21164 | F44: =Worksheet!U43 -> 82385.72831 | G44: =Worksheet!V43 -> 84472.82957
B45: =Worksheet!Q44 -> Operating Surplus % | C45: =Worksheet!R44 -> 0.12 | D45: =Worksheet!S44 -> 0.1486935764 | E45: =Worksheet!T44 -> 0.1603995919 | F45: =Worksheet!U44 -> 0.1392839785 | G45: =Worksheet!V44 -> 0.1493026172
B47: =Worksheet!Q46 -> LESS
B48: =Worksheet!Q47 -> Depreciation Allowance | C48: =Worksheet!R47 -> 12500 | D48: =Worksheet!S47 -> 12763.03089 | E48: =Worksheet!T47 -> 12898.55212 | F48: =Worksheet!U47 -> 13071.84157 | G48: =Worksheet!V47 -> 12911.14153
B50: =Worksheet!Q49 -> Business Return | C50: =Worksheet!R49 -> 47500 | D50: =Worksheet!S49 -> 67841.51786 | E50: =Worksheet!T49 -> 77529.65952 | F50: =Worksheet!U49 -> 69313.88674 | G50: =Worksheet!V49 -> 71561.68804
B51: =Worksheet!Q50 -> Business Return % | C51: =Worksheet!R50 -> 0.095 | D51: =Worksheet!S50 -> 0.1251492388 | E51: =Worksheet!T50 -> 0.1375204212 | F51: =Worksheet!U50 -> 0.1171843001 | G51: =Worksheet!V50 -> 0.1264826497

Sheet Budget by Month Master
B2: Budget by Month Master
B3: Budget by Month Master | D3: =+D$7/$P$7*D$9/(1/12) -> 0.01 | E3: =+E$7/$P$7*E$9/(1/12) -> 0.02769230769 | F3: 0.04846153846 | G3: 0.04492307692 | H3: 0.07076923077 | I3: 0.07661538462 | J3: 0.09692307692 | K3: 0.1095384615 | L3: 0.1176923077 | M3: 0.1307692308 | N3: 0.1336923077 | O3: 0.1181538462 | P3: =SUM(D3:O3) -> 0.9852307692
B4: =Worksheet!B3 -> Acme Widgets
B5: =+Worksheet!B4 -> Expected | C5: =Worksheet!C4 -> Current Year | D5: Budget Year
B6: Budget Month | D6: 2022-07-01 | E6: =+D6+31 -> 2022-08-01 | F6: =+E6+31 -> 2022-09-01 | G6: 2022-10-02 | H6: 2022-11-02 | I6: 2022-12-03 | J6: 2023-01-03 | K6: 2023-02-03 | L6: 2023-03-06 | M6: 2023-04-06 | N6: 2023-05-07 | O6: 2023-06-07 | P6: Full Year | Q6: Variation Year/Year
D7: 1 | E7: 2 | F7: 3 | G7: 4 | H7: 5 | I7: 6 | J7: 7 | K7: 8 | L7: 9 | M7: 10 | N7: 11 | O7: 12 | P7: =SUM(D7:O7) -> 78
B8: Base Revenue | C8: =Worksheet!C5 -> 500000 | D8: =+$C8*D9 -> 32500 | E8: =+$C8*E9 -> 45000 | F8: 52500 | G8: 36500 | H8: 46000 | I8: 41500 | J8: 45000 | K8: 44500 | L8: 42500 | M8: 42500 | N8: 39500 | O8: 32000 | P8: =+C8 -> 500000
B9: Percentage Contributor | D9: 0.065 | E9: 0.09 | F9: 0.105 | G9: 0.073 | H9: 0.092 | I9: 0.083 | J9: 0.09 | K9: 0.089 | L9: 0.085 | M9: 0.085 | N9: 0.079 | O9: =+P9-SUM(D9:N9) -> 0.064 | P9: 1
B10: Growth Revenue | D10: =+D11*$P$10 -> 615.8923731 | E10: =+E11*$P$10 -> 1705.54811 | F10: 2984.709193 | G10: 2766.778045 | H10: 4358.622948 | I10: 4718.683105 | J10: 5969.418385 | K10: 6746.390302 | L10: 7248.579468 | M10: 8053.977187 | N10: 8234.007265 | O10: 7277.00527 | P10: =+P12-P8 -> 60679.61165
D11: =+D3/$P$3 -> 0.01014990631 | E11: =+E3/$P$3 -> 0.02810743285 | F11: 0.0491880075 | G11: 0.04559650219 | H11: 0.07183010618 | I11: 0.07776389756 | J11: 0.09837601499 | K11: 0.1111805122 | L11: 0.1194565896 | M11: 0.132729544 | N11: 0.1356964397 | O11: 0.1199250468 | P11: =SUM(D11:O11) -> 1
B12: Total Revenue | C12: =+C8 -> 500000 | D12: =+D8+D10 -> 33115.89237 | E12: =+E8+E10 -> 46705.54811 | F12: 55484.70919 | G12: 39266.77805 | H12: 50358.62295 | I12: 46218.6831 | J12: 50969.41839 | K12: 51246.3903 | L12: 49748.57947 | M12: 50553.97719 | N12: 47734.00726 | O12: 39277.00527 | P12: =Worksheet!$D5 -> 560679.6117 | Q12: =+P12-C12 -> 60679.61165
D13: =+D12/$P12 -> 0.05906384267 | E13: =+E12/$P12 -> 0.08330167022 | F13: 0.09895974107 | G13: 0.07003425348 | H13: 0.08981711106 | I13: 0.08243332225 | J13: 0.09090649513 | K13: 0.09140048833 | L13: 0.08872906814 | M13: 0.09016553507 | N13: 0.08513597833 | O13: 0.07005249425 | P13: 1 | Q13: =+Q12/C12 -> 0.1213592233
B15: =Worksheet!B6 -> Expenses
B16: =Worksheet!B7 -> Variable Costs
B17: =Worksheet!B8 -> Materials & Supplies | C17: =Worksheet!C8 -> 10000 | D17: =+D$13*$P17 -> 675.1783882 | E17: =+E$13*$P17 -> 952.2490391 | F17: 1131.241644 | G17: 800.5847951 | H17: 1026.729206 | I17: 942.3226652 | J17: 1039.182317 | K17: 1044.829317 | L17: 1014.291426 | M17: 1030.712156 | N17: 973.2176238 | O17: 800.7933113 | P17: =Worksheet!D8 -> 11431.33189 | Q17: =+P17-C17 -> 1431.331888
B18: =Worksheet!B9 -> % Revenue | C18: =Worksheet!C9 -> 0.02 | D18: =+D17/D$12 -> 0.02038834951 | E18: =+E17/E$12 -> 0.02038834951 | F18: 0.02038834951 | G18: 0.02038834951 | H18: 0.02038834951 | I18: 0.02038834951 | J18: 0.02038834951 | K18: 0.02038834951 | L18: 0.02038834951 | M18: 0.02038834951 | N18: 0.02038834951 | O18: 0.02038834951 | P18: =Worksheet!D9 -> 0.02038834951 | Q18: =+Q17/C17 -> 0.1431331888
B19: =Worksheet!B10 -> Labor excluding Owner | C19: =Worksheet!C10 -> 200000 | D19: =+D$13*$P19 -> 13140.40363 | E19: =+E$13*$P19 -> 18532.78622 | F19: 22016.36199 | G19: 15581.07832 | H19: 19982.32825 | I19: 18339.59793 | J19: 20224.69221 | K19: 20334.59481 | L19: 19740.26268 | M19: 20059.84492 | N19: 18940.87936 | O19: 15585.13649 | P19: =Worksheet!D10 -> 222477.9668 | Q19: =+P19-C19 -> 22477.96682
B20: =Worksheet!B11 -> % Revenue | C20: =Worksheet!C11 -> 0.4 | D20: =+D19/D$12 -> 0.3968005296 | E20: =+E19/E$12 -> 0.3968005296 | F20: 0.3968005296 | G20: 0.3968005296 | H20: 0.3968005296 | I20: 0.3968005296 | J20: 0.3968005296 | K20: 0.3968005296 | L20: 0.3968005296 | M20: 0.3968005296 | N20: 0.3968005296 | O20: 0.3968005296 | P20: =Worksheet!D11 -> 0.3968005296 | Q20: =+Q19/C19 -> 0.1123898341
B21: =Worksheet!B12 -> Labor Owner | C21: =Worksheet!C12 -> 50000 | D21: =+D$13*$P21 -> 2935.272279 | E21: =+E$13*$P21 -> 4139.809946 | F21: 4917.96286 | G21: 3480.464418 | H21: 4463.605216 | I21: 4096.656002 | J21: 4517.743902 | K21: 4542.293686 | L21: 4409.53318 | M21: 4480.920705 | N21: 4230.968826 | O21: 3481.370922 | P21: =Worksheet!D12 -> 49696.60194 | Q21: =+P21-C21 -> -303.3980583
B22: =Worksheet!B13 -> % Revenue | C22: =Worksheet!C13 -> 0.1 | D22: =+D21/D$12 -> 0.08863636364 | E22: =+E21/E$12 -> 0.08863636364 | F22: 0.08863636364 | G22: 0.08863636364 | H22: 0.08863636364 | I22: 0.08863636364 | J22: 0.08863636364 | K22: 0.08863636364 | L22: 0.08863636364 | M22: 0.08863636364 | N22: 0.08863636364 | O22: 0.08863636364 | P22: =Worksheet!D13 -> 0.08863636364 | Q22: =+Q21/C21 -> -0.006067961165
B23: =Worksheet!B14 -> Distribution | C23: =Worksheet!C14 -> 20000 | D23: =+D$13*$P23 -> 1286.054073 | E23: =+E$13*$P23 -> 1813.807694 | F23: 2154.745988 | G23: 1524.923419 | H23: 1955.674678 | I23: 1794.900315 | J23: 1979.394889 | K23: 1990.15108 | L23: 1931.983669 | M23: 1963.26125 | N23: 1853.747855 | O23: 1525.320593 | P23: =Worksheet!D14 -> 21773.9655 | Q23: =+P23-C23 -> 1773.965501
B24: =Worksheet!B15 -> % Revenue | C24: =Worksheet!C15 -> 0.04 | D24: =+D23/D$12 -> 0.03883495146 | E24: =+E23/E$12 -> 0.03883495146 | F24: 0.03883495146 | G24: 0.03883495146 | H24: 0.03883495146 | I24: 0.03883495146 | J24: 0.03883495146 | K24: 0.03883495146 | L24: 0.03883495146 | M24: 0.03883495146 | N24: 0.03883495146 | O24: 0.03883495146 | P24: =Worksheet!D15 -> 0.03883495146 | Q24: =+Q23/C23 -> 0.08869827505
B25: =Worksheet!B16 -> Marketing | C25: =Worksheet!C16 -> 10000 | D25: =+D$13*$P25 -> 643.0270364 | E25: =+E$13*$P25 -> 906.9038468 | F25: 1077.372994 | G25: 762.4617096 | H25: 977.8373388 | I25: 897.4501574 | J25: 989.6974444 | K25: 995.0755398 | L25: 965.9918343 | M25: 981.630625 | N25: 926.8739275 | O25: 762.6602965 | P25: =Worksheet!D16 -> 10886.98275 | Q25: =+P25-C25 -> 886.9827505
B26: =Worksheet!B17 -> % Revenue | C26: =Worksheet!C17 -> 0.02 | D26: =+D25/D$12 -> 0.01941747573 | E26: =+E25/E$12 -> 0.01941747573 | F26: 0.01941747573 | G26: 0.01941747573 | H26: 0.01941747573 | I26: 0.01941747573 | J26: 0.01941747573 | K26: 0.01941747573 | L26: 0.01941747573 | M26: 0.01941747573 | N26: 0.01941747573 | O26: 0.01941747573 | P26: =Worksheet!D17 -> 0.01941747573 | Q26: =+Q25/C25 -> 0.08869827505
B27: =Worksheet!B18 -> Other | C27: =Worksheet!C18 -> 20000 | D27: =+D$13*$P27 -> 1286.054073 | E27: =+E$13*$P27 -> 1813.807694 | F27: 2154.745988 | G27: 1524.923419 | H27: 1955.674678 | I27: 1794.900315 | J27: 1979.394889 | K27: 1990.15108 | L27: 1931.983669 | M27: 1963.26125 | N27: 1853.747855 | O27: 1525.320593 | P27: =Worksheet!D18 -> 21773.9655 | Q27: =+P27-C27 -> 1773.965501
B28: =Worksheet!B19 -> % Revenue | C28: =Worksheet!C19 -> 0.04 | D28: =+D27/D$12 -> 0.03883495146 | E28: =+E27/E$12 -> 0.03883495146 | F28: 0.03883495146 | G28: 0.03883495146 | H28: 0.03883495146 | I28: 0.03883495146 | J28: 0.03883495146 | K28: 0.03883495146 | L28: 0.03883495146 | M28: 0.03883495146 | N28: 0.03883495146 | O28: 0.03883495146 | P28: =Worksheet!D19 -> 0.03883495146 | Q28: =+Q27/C27 -> 0.08869827505
B29: =Worksheet!B20 -> Total Variable Costs | C29: =Worksheet!C20 -> 310000 | D29: =+D17+D19+D21+D23+D25+D27 -> 19965.98948 | E29: =+E17+E19+E21+E23+E25+E27 -> 28159.36444 | F29: 33452.43146 | G29: 23674.43608 | H29: 30361.84937 | I29: 27865.82739 | J29: 30730.10565 | K29: 30897.09551 | L29: 29994.04646 | M29: 30479.63091 | N29: 28779.43545 | O29: 23680.60221 | P29: =Worksheet!D20 -> 338040.8144 | Q29: =+P29-C29 -> 28040.8144
B30: =Worksheet!B21 -> Total Variable Costs % | C30: =Worksheet!C21 -> 0.62 | D30: =+D29/D$12 -> 0.6029126214 | E30: =+E29/E$12 -> 0.6029126214 | F30: 0.6029126214 | G30: 0.6029126214 | H30: 0.6029126214 | I30: 0.6029126214 | J30: 0.6029126214 | K30: 0.6029126214 | L30: 0.6029126214 | M30: 0.6029126214 | N30: 0.6029126214 | O30: 0.6029126214 | P30: =Worksheet!D21 -> 0.6029126214 | Q30: =+Q29/C29 -> 0.09045424001
B31: =Worksheet!B22 -> Gross Profit | C31: =Worksheet!C22 -> 190000 | D31: =+D12-D29 -> 13149.90289 | E31: =+E12-E29 -> 18546.18367 | F31: 22032.27773 | G31: 15592.34196 | H31: 19996.77358 | I31: 18352.85572 | J31: 20239.31274 | K31: 20349.29479 | L31: 19754.53301 | M31: 20074.34628 | N31: 18954.57182 | O31: 15596.40306 | P31: =Worksheet!D22 -> 222638.7972 | Q31: =+P31-C31 -> 32638.79725
B32: =Worksheet!B23 -> Gross Profit % | C32: =Worksheet!C23 -> 0.38 | D32: =+D31/D12 -> 0.3970873786 | E32: =+E31/E12 -> 0.3970873786 | F32: 0.3970873786 | G32: 0.3970873786 | H32: 0.3970873786 | I32: 0.3970873786 | J32: 0.3970873786 | K32: 0.3970873786 | L32: 0.3970873786 | M32: 0.3970873786 | N32: 0.3970873786 | O32: 0.3970873786 | P32: =Worksheet!D23 -> 0.3970873786 | Q32: =+Q31/C31 -> 0.1717831434
B33: =Worksheet!B24 -> Mark-up Equivalent | C33: =Worksheet!C24 -> 0.6129032258 | D33: =IF(D12=0,0,+D12/D29-1) -> 0.6586151369 | E33: =IF(E12=0,0,+E12/E29-1) -> 0.6586151369 | F33: 0.6586151369 | G33: 0.6586151369 | H33: 0.6586151369 | I33: 0.6586151369 | J33: 0.6586151369 | K33: 0.6586151369 | L33: 0.6586151369 | M33: 0.6586151369 | N33: 0.6586151369 | O33: 0.6586151369 | P33: =Worksheet!D24 -> 0.6586151369 | Q33: =+Q32/C32 -> 0.4520609037
B34: =Worksheet!B25 -> Fixed Costs
B35: =Worksheet!B26 -> Location | C35: =Worksheet!C26 -> 40000 | D35: =+$P35/12 -> 3434.466019 | E35: =+$P35/12 -> 3434.466019 | F35: 3434.466019 | G35: 3434.466019 | H35: 3434.466019 | I35: 3434.466019 | J35: 3434.466019 | K35: 3434.466019 | L35: 3434.466019 | M35: 3434.466019 | N35: 3434.466019 | O35: 3434.466019 | P35: =Worksheet!D26 -> 41213.59223 | Q35: =+P35-C35 -> 1213.592233
B36: =Worksheet!B27 -> % Revenue | C36: =Worksheet!C27 -> 0.08 | D36: =+D35/D$12 -> 0.103710508 | E36: =+E35/E$12 -> 0.07353443345 | F36: 0.06189932451 | G36: 0.08746493067 | H36: 0.06820015756 | I36: 0.07430904104 | J36: 0.0673828764 | K36: 0.06701869145 | L36: 0.06903646408 | M36: 0.06793661371 | N36: 0.07195008792 | O36: 0.08744215593 | P36: =Worksheet!D27 -> 0.07350649351 | Q36: =+Q35/C35 -> 0.03033980583
B37: =Worksheet!B28 -> Administration | C37: =Worksheet!C28 -> 30000 | D37: =+$P37/12 -> 2575.849515 | E37: =+$P37/12 -> 2575.849515 | F37: 2575.849515 | G37: 2575.849515 | H37: 2575.849515 | I37: 2575.849515 | J37: 2575.849515 | K37: 2575.849515 | L37: 2575.849515 | M37: 2575.849515 | N37: 2575.849515 | O37: 2575.849515 | P37: =Worksheet!D28 -> 30910.19417 | Q37: =+P37-C37 -> 910.1941748
B38: =Worksheet!B29 -> % Revenue | C38: =Worksheet!C29 -> 0.06 | D38: =+D37/D$12 -> 0.07778288097 | E38: =+E37/E$12 -> 0.05515082509 | F38: 0.04642449338 | G38: 0.065598698 | H38: 0.05115011817 | I38: 0.05573178078 | J38: 0.0505371573 | K38: 0.05026401859 | L38: 0.05177734806 | M38: 0.05095246028 | N38: 0.05396256594 | O38: 0.06558161695 | P38: =Worksheet!D29 -> 0.05512987013 | Q38: =+Q37/C37 -> 0.03033980583
B39: =Worksheet!B30 -> Labor excluding Owner | C39: =Worksheet!C30 -> 50000 | D39: =+$P39/12 -> 4293.082524 | E39: =+$P39/12 -> 4293.082524 | F39: 4293.082524 | G39: 4293.082524 | H39: 4293.082524 | I39: 4293.082524 | J39: 4293.082524 | K39: 4293.082524 | L39: 4293.082524 | M39: 4293.082524 | N39: 4293.082524 | O39: 4293.082524 | P39: =Worksheet!D30 -> 51516.99029 | Q39: =+P39-C39 -> 1516.990291
B40: =Worksheet!B31 -> % Revenue | C40: =Worksheet!C31 -> 0.1 | D40: =+D39/D$12 -> 0.1296381349 | E40: =+E39/E$12 -> 0.09191804182 | F40: 0.07737415563 | G40: 0.1093311633 | H40: 0.08525019695 | I40: 0.09288630129 | J40: 0.0842285955 | K40: 0.08377336431 | L40: 0.0862955801 | M40: 0.08492076713 | N40: 0.0899376099 | O40: 0.1093026949 | P40: =Worksheet!D31 -> 0.09188311688 | Q40: =+Q39/C39 -> 0.03033980583
B41: =Worksheet!B32 -> Labor Owner | C41: =Worksheet!C32 -> 10000 | D41: =+$P41/12 -> 858.6165049 | E41: =+$P41/12 -> 858.6165049 | F41: 858.6165049 | G41: 858.6165049 | H41: 858.6165049 | I41: 858.6165049 | J41: 858.6165049 | K41: 858.6165049 | L41: 858.6165049 | M41: 858.6165049 | N41: 858.6165049 | O41: 858.6165049 | P41: =Worksheet!D32 -> 10303.39806 | Q41: =+P41-C41 -> 303.3980583
B42: =Worksheet!B33 -> % Revenue | C42: =Worksheet!C33 -> 0.02 | D42: =+D41/D$12 -> 0.02592762699 | E42: =+E41/E$12 -> 0.01838360836 | F42: 0.01547483113 | G42: 0.02186623267 | H42: 0.01705003939 | I42: 0.01857726026 | J42: 0.0168457191 | K42: 0.01675467286 | L42: 0.01725911602 | M42: 0.01698415343 | N42: 0.01798752198 | O42: 0.02186053898 | P42: =Worksheet!D33 -> 0.01837662338 | Q42: =+Q41/C41 -> 0.03033980583
B43: =Worksheet!B34 -> Interest Costs | C43: =Worksheet!C34 -> 0 | D43: =+$P43/12 -> 0 | E43: =+$P43/12 -> 0 | F43: 0 | G43: 0 | H43: 0 | I43: 0 | J43: 0 | K43: 0 | L43: 0 | M43: 0 | N43: 0 | O43: 0 | P43: =Worksheet!D34 -> 0 | Q43: =+P43-C43 -> 0
B44: =Worksheet!B35 -> % Revenue | C44: =Worksheet!C35 -> 0 | D44: =+D43/D$12 -> 0 | E44: =+E43/E$12 -> 0 | F44: 0 | G44: 0 | H44: 0 | I44: 0 | J44: 0 | K44: 0 | L44: 0 | M44: 0 | N44: 0 | O44: 0 | P44: =Worksheet!D35 -> 0 | Q44: =+Q43/C43 -> 
B45: =Worksheet!B36 -> Other | C45: =Worksheet!C36 -> 0 | D45: =+$P45/12 -> 0 | E45: =+$P45/12 -> 0 | F45: 0 | G45: 0 | H45: 0 | I45: 0 | J45: 0 | K45: 0 | L45: 0 | M45: 0 | N45: 0 | O45: 0 | P45: =Worksheet!D36 -> 0 | Q45: =+P45-C45 -> 0
B46: =Worksheet!B37 -> % Revenue | C46: =Worksheet!C37 -> 0 | D46: =+D45/D$12 -> 0 | E46: =+E45/E$12 -> 0 | F46: 0 | G46: 0 | H46: 0 | I46: 0 | J46: 0 | K46: 0 | L46: 0 | M46: 0 | N46: 0 | O46: 0 | P46: =Worksheet!D37 -> 0 | Q46: =+Q45/C45 -> 
B47: =Worksheet!B38 -> Total Fixed Costs | C47: =Worksheet!C38 -> 130000 | D47: =+D35+D37+D39+D41+D43+D45 -> 11162.01456 | E47: =+E35+E37+E39+E41+E43+E45 -> 11162.01456 | F47: 11162.01456 | G47: 11162.01456 | H47: 11162.01456 | I47: 11162.01456 | J47: 11162.01456 | K47: 11162.01456 | L47: 11162.01456 | M47: 11162.01456 | N47: 11162.01456 | O47: 11162.01456 | P47: =Worksheet!D38 -> 133944.1748 | Q47: =+P47-C47 -> 3944.174757
B48: =Worksheet!B39 -> Total Fixed Costs % | C48: =Worksheet!C39 -> 0.26 | D48: =+D47/D12 -> 0.3370591509 | E48: =+E47/E12 -> 0.2389869087 | F48: 0.2011728046 | G48: 0.2842610247 | H48: 0.2216505121 | I48: 0.2415043834 | J48: 0.2189943483 | K48: 0.2178107472 | L48: 0.2243685083 | M48: 0.2207939945 | N48: 0.2338377857 | O48: 0.2841870068 | P48: =Worksheet!D39 -> 0.2388961039 | Q48: =+Q47/C47 -> 0.03033980583
B50: =Worksheet!B41 -> Total Expenses | C50: =Worksheet!C41 -> 440000 | D50: =+D47+D29 -> 31128.00404 | E50: =+E47+E29 -> 39321.37901 | F50: 44614.44603 | G50: 34836.45065 | H50: 41523.86393 | I50: 39027.84195 | J50: 41892.12021 | K50: 42059.11008 | L50: 41156.06102 | M50: 41641.64547 | N50: 39941.45001 | O50: 34842.61677 | P50: =Worksheet!D41 -> 471984.9892 | Q50: =+P50-C50 -> 31984.98916
B52: =Worksheet!B43 -> Operating Surplus | C52: =Worksheet!C43 -> 60000 | D52: =+D12-D50 -> 1987.888331 | E52: =+E12-E50 -> 7384.169104 | F52: 10870.26316 | G52: 4430.327399 | H52: 8834.759015 | I52: 7190.841155 | J52: 9077.298174 | K52: 9187.280227 | L52: 8592.518449 | M52: 8912.331718 | N52: 7792.557254 | O52: 4434.3885 | P52: =Worksheet!D43 -> 88694.62249 | Q52: =+P52-C52 -> 28694.62249
B53: =Worksheet!B44 -> Operating Surplus % | C53: =Worksheet!C44 -> 0.12 | D53: =+D52/D12 -> 0.06002822778 | E53: =+E52/E12 -> 0.1581004699 | F53: 0.195914574 | G53: 0.112826354 | H53: 0.1754368666 | I53: 0.1555829953 | J53: 0.1780930303 | K53: 0.1792766314 | L53: 0.1727188704 | M53: 0.1762933841 | N53: 0.1632495929 | O53: 0.1129003719 | P53: =Worksheet!D44 -> 0.1581912747 | Q53: =+Q52/C52 -> 0.4782437082
B55: =Worksheet!B46 -> LESS
B56: =Worksheet!B47 -> Depreciation Allowance | C56: =Worksheet!C47 -> 12500 | D56: =+$P56/12 -> 1073.270631 | E56: =+$P56/12 -> 1073.270631 | F56: 1073.270631 | G56: 1073.270631 | H56: 1073.270631 | I56: 1073.270631 | J56: 1073.270631 | K56: 1073.270631 | L56: 1073.270631 | M56: 1073.270631 | N56: 1073.270631 | O56: 1073.270631 | P56: =Worksheet!D47 -> 12879.24757 | Q56: =+P56-C56 -> 379.2475728
B58: =Worksheet!B49 -> Business Return | C58: =Worksheet!C49 -> 47500 | D58: =+D52-D56 -> 914.6176996 | E58: =+E52-E56 -> 6310.898473 | F58: 9796.992534 | G58: 3357.056767 | H58: 7761.488384 | I58: 6117.570524 | J58: 8004.027543 | K58: 8114.009596 | L58: 7519.247818 | M58: 7839.061087 | N58: 6719.286623 | O58: 3361.117869 | P58: =Worksheet!D49 -> 75815.37492 | Q58: =+P58-C58 -> 28315.37492
B59: =Worksheet!B50 -> Business Return % | C59: =Worksheet!C50 -> 0.095 | D59: =+D58/D12 -> 0.02761869405 | E59: =+E58/E12 -> 0.1351209595 | F59: 0.1765710351 | G59: 0.08549356312 | H59: 0.1541243173 | I59: 0.13236142 | J59: 0.1570358815 | K59: 0.1583332904 | L59: 0.1511449754 | M59: 0.1550631923 | N59: 0.1407651904 | O59: 0.08557469813 | P59: =Worksheet!D50 -> 0.1352204955 | Q59: =+Q58/C58 -> 0.5961131562

Sheet Budget by Month
C2: Budget by Month
C3: Budget by Month | K3: ='Budget by Month Master'!J3 -> 0.09692307692
C4: ='Budget by Month Master'!B4 -> Acme Widgets
C5: Expected | D5: Current Year | E5: Budget Year | R5: ='Budget by Month Master'!Q6 -> Variation Year/Year
E6: 2010-01-01 | F6: =+E6+31 -> 2010-02-01 | G6: =+F6+31 -> 2010-03-04 | H6: 2010-04-04 | I6: 2010-05-05 | J6: 2010-06-05 | K6: 2010-07-06 | L6: 2010-08-06 | M6: 2010-09-06 | N6: 2010-10-07 | O6: 2010-11-07 | P6: 2010-12-08 | Q6: ='Budget by Month Master'!P6 -> Full Year
C8: Base Revenue | D8: 500000 | E8: 32500 | F8: 45000 | G8: 52500 | H8: 36500 | I8: 46000 | J8: 41500 | K8: 45000 | L8: 44500 | M8: 42500 | N8: 42500 | O8: 39500 | P8: 32000 | Q8: =SUM(E8:P8) -> 500000
E9: =+E8/$Q8 -> 0.065 | F9: =+F8/$Q8 -> 0.09 | G9: 0.105 | H9: 0.073 | I9: 0.092 | J9: 0.083 | K9: 0.09 | L9: 0.089 | M9: 0.085 | N9: 0.085 | O9: 0.079 | P9: 0.064 | Q9: 1
C10: Growth Revenue | E10: 615.8923731 | F10: 1705.54811 | G10: 2984.709193 | H10: 2766.778045 | I10: 4358.622948 | J10: 4718.683105 | K10: 5969.418385 | L10: 6746.390302 | M10: 7248.579468 | N10: 8053.977187 | O10: 8234.007265 | P10: 7277.00527 | Q10: =SUM(E10:P10) -> 60679.61165
E11: =+E10/$Q10 -> 0.01014990631 | F11: =+F10/$Q10 -> 0.02810743285 | G11: 0.0491880075 | H11: 0.04559650219 | I11: 0.07183010618 | J11: 0.07776389756 | K11: 0.09837601499 | L11: 0.1111805122 | M11: 0.1194565896 | N11: 0.132729544 | O11: 0.1356964397 | P11: 0.1199250468 | Q11: 1
C12: ='Budget by Month Master'!B12 -> Total Revenue | D12: =+D8+D10 -> 500000 | E12: =+E8+E10 -> 33115.89237 | F12: 46705.54811 | G12: 55484.70919 | H12: 39266.77805 | I12: 50358.62295 | J12: 46218.6831 | K12: 50969.41839 | L12: 51246.3903 | M12: 49748.57947 | N12: 50553.97719 | O12: 47734.00726 | P12: 39277.00527 | Q12: =+Q8+Q10 -> 560679.6117 | R12: =+Q12-$D$12 -> 60679.61165
E13: =+E12/$Q12 -> 0.05906384267 | F13: =+F12/$Q12 -> 0.08330167022 | G13: 0.09895974107 | H13: 0.07003425348 | I13: 0.08981711106 | J13: 0.08243332225 | K13: 0.09090649513 | L13: 0.09140048833 | M13: 0.08872906814 | N13: 0.09016553507 | O13: 0.08513597833 | P13: 0.07005249425 | Q13: 1 | R13: =+R12/$D$12 -> 0.1213592233
C15: ='Budget by Month Master'!B15 -> Expenses
C16: ='Budget by Month Master'!B16 -> Variable Costs
C17: Materials & Supplies | D17: 10000 | E17: 675.1783882 | F17: 952.2490391 | G17: 1131.241644 | H17: 800.5847951 | I17: 1026.729206 | J17: 942.3226652 | K17: 1039.182317 | L17: 1044.829317 | M17: 1014.291426 | N17: 1030.712156 | O17: 973.2176238 | P17: 800.7933113 | Q17: =SUM(E17:P17) -> 11431.33189 | R17: =+Q17-D17 -> 1431.331888
C18: ='Budget by Month Master'!B18 -> % Revenue | D18: =+D17/D$12 -> 0.02 | E18: =+E17/E$12 -> 0.02038834951 | F18: =+F17/F$12 -> 0.02038834951 | G18: 0.02038834951 | H18: 0.02038834951 | I18: 0.02038834951 | J18: 0.02038834951 | K18: 0.02038834951 | L18: 0.02038834951 | M18: 0.02038834951 | N18: 0.02038834951 | O18: 0.02038834951 | P18: 0.02038834951 | Q18: 0.02038834951 | R18: =+R17/D17 -> 0.1431331888
C19: Labor excluding Owner | D19: 200000 | E19: 13140.40363 | F19: 18532.78622 | G19: 22016.36199 | H19: 15581.07832 | I19: 19982.32825 | J19: 18339.59793 | K19: 20224.69221 | L19: 20334.59481 | M19: 19740.26268 | N19: 20059.84492 | O19: 18940.87936 | P19: 15585.13649 | Q19: =SUM(E19:P19) -> 222477.9668 | R19: =+Q19-D19 -> 22477.96682
C20: ='Budget by Month Master'!B20 -> % Revenue | D20: =+D19/D$12 -> 0.4 | E20: =+E19/E$12 -> 0.3968005296 | F20: 0.3968005296 | G20: 0.3968005296 | H20: 0.3968005296 | I20: 0.3968005296 | J20: 0.3968005296 | K20: 0.3968005296 | L20: 0.3968005296 | M20: 0.3968005296 | N20: 0.3968005296 | O20: 0.3968005296 | P20: 0.3968005296 | Q20: 0.3968005296 | R20: =+R19/D19 -> 0.1123898341
C21: Labor Owner | D21: 50000 | E21: 2935.272279 | F21: 4139.809946 | G21: 4917.96286 | H21: 3480.464418 | I21: 4463.605216 | J21: 4096.656002 | K21: 4517.743902 | L21: 4542.293686 | M21: 4409.53318 | N21: 4480.920705 | O21: 4230.968826 | P21: 3481.370922 | Q21: =SUM(E21:P21) -> 49696.60194 | R21: =+Q21-D21 -> -303.3980583
C22: ='Budget by Month Master'!B22 -> % Revenue | D22: =+D21/D$12 -> 0.1 | E22: =+E21/E$12 -> 0.08863636364 | F22: 0.08863636364 | G22: 0.08863636364 | H22: 0.08863636364 | I22: 0.08863636364 | J22: 0.08863636364 | K22: 0.08863636364 | L22: 0.08863636364 | M22: 0.08863636364 | N22: 0.08863636364 | O22: 0.08863636364 | P22: 0.08863636364 | Q22: 0.08863636364 | R22: =+R21/D21 -> -0.006067961165
C23: Distribution | D23: 20000 | E23: 1286.054073 | F23: 1813.807694 | G23: 2154.745988 | H23: 1524.923419 | I23: 1955.674678 | J23: 1794.900315 | K23: 1979.394889 | L23: 1990.15108 | M23: 1931.983669 | N23: 1963.26125 | O23: 1853.747855 | P23: 1525.320593 | Q23: =SUM(E23:P23) -> 21773.9655 | R23: =+Q23-D23 -> 1773.965501
C24: ='Budget by Month Master'!B24 -> % Revenue | D24: =+D23/D$12 -> 0.04 | E24: =+E23/E$12 -> 0.03883495146 | F24: 0.03883495146 | G24: 0.03883495146 | H24: 0.03883495146 | I24: 0.03883495146 | J24: 0.03883495146 | K24: 0.03883495146 | L24: 0.03883495146 | M24: 0.03883495146 | N24: 0.03883495146 | O24: 0.03883495146 | P24: 0.03883495146 | Q24: 0.03883495146 | R24: =+R23/D23 -> 0.08869827505
C25: Marketing | D25: 10000 | E25: 643.0270364 | F25: 906.9038468 | G25: 1077.372994 | H25: 762.4617096 | I25: 977.8373388 | J25: 897.4501574 | K25: 989.6974444 | L25: 995.0755398 | M25: 965.9918343 | N25: 981.630625 | O25: 926.8739275 | P25: 762.6602965 | Q25: =SUM(E25:P25) -> 10886.98275 | R25: =+Q25-D25 -> 886.9827505
C26: ='Budget by Month Master'!B26 -> % Revenue | D26: =+D25/D$12 -> 0.02 | E26: =+E25/E$12 -> 0.01941747573 | F26: 0.01941747573 | G26: 0.01941747573 | H26: 0.01941747573 | I26: 0.01941747573 | J26: 0.01941747573 | K26: 0.01941747573 | L26: 0.01941747573 | M26: 0.01941747573 | N26: 0.01941747573 | O26: 0.01941747573 | P26: 0.01941747573 | Q26: 0.01941747573 | R26: =+R25/D25 -> 0.08869827505
C27: Other | D27: 20000 | E27: 1286.054073 | F27: 1813.807694 | G27: 2154.745988 | H27: 1524.923419 | I27: 1955.674678 | J27: 1794.900315 | K27: 1979.394889 | L27: 1990.15108 | M27: 1931.983669 | N27: 1963.26125 | O27: 1853.747855 | P27: 1525.320593 | Q27: =SUM(E27:P27) -> 21773.9655 | R27: =+Q27-D27 -> 1773.965501
C28: ='Budget by Month Master'!B28 -> % Revenue | D28: =+D27/D$12 -> 0.04 | E28: =+E27/E$12 -> 0.03883495146 | F28: 0.03883495146 | G28: 0.03883495146 | H28: 0.03883495146 | I28: 0.03883495146 | J28: 0.03883495146 | K28: 0.03883495146 | L28: 0.03883495146 | M28: 0.03883495146 | N28: 0.03883495146 | O28: 0.03883495146 | P28: 0.03883495146 | Q28: 0.03883495146 | R28: =+R27/D27 -> 0.08869827505
C29: ='Budget by Month Master'!B29 -> Total Variable Costs | D29: =+D17+D19+D21+D23+D25+D27 -> 310000 | E29: =+E17+E19+E21+E23+E25+E27 -> 19965.98948 | F29: 28159.36444 | G29: 33452.43146 | H29: 23674.43608 | I29: 30361.84937 | J29: 27865.82739 | K29: 30730.10565 | L29: 30897.09551 | M29: 29994.04646 | N29: 30479.63091 | O29: 28779.43545 | P29: 23680.60221 | Q29: 338040.8144 | R29: =+Q29-D29 -> 28040.8144
C30: ='Budget by Month Master'!B30 -> Total Variable Costs % | D30: =+D29/D$12 -> 0.62 | E30: ='Budget by Month Master'!D30 -> 0.6029126214 | F30: ='Budget by Month Master'!E30 -> 0.6029126214 | G30: ='Budget by Month Master'!F30 -> 0.6029126214 | H30: ='Budget by Month Master'!G30 -> 0.6029126214 | I30: ='Budget by Month Master'!H30 -> 0.6029126214 | J30: ='Budget by Month Master'!I30 -> 0.6029126214 | K30: ='Budget by Month Master'!J30 -> 0.6029126214 | L30: ='Budget by Month Master'!K30 -> 0.6029126214 | M30: ='Budget by Month Master'!L30 -> 0.6029126214 | N30: ='Budget by Month Master'!M30 -> 0.6029126214 | O30: ='Budget by Month Master'!N30 -> 0.6029126214 | P30: ='Budget by Month Master'!O30 -> 0.6029126214 | Q30: ='Budget by Month Master'!P30 -> 0.6029126214 | R30: =+R29/D29 -> 0.09045424001
C31: ='Budget by Month Master'!B31 -> Gross Profit | D31: =+D12-D29 -> 190000 | E31: =+E12-E29 -> 13149.90289 | F31: 18546.18367 | G31: 22032.27773 | H31: 15592.34196 | I31: 19996.77358 | J31: 18352.85572 | K31: 20239.31274 | L31: 20349.29479 | M31: 19754.53301 | N31: 20074.34628 | O31: 18954.57182 | P31: 15596.40306 | Q31: 222638.7972 | R31: =+Q31-D31 -> 32638.79725
C32: ='Budget by Month Master'!B32 -> Gross Profit % | D32: =+D31/D$12 -> 0.38 | E32: =+E31/E$12 -> 0.3970873786 | F32: 0.3970873786 | G32: 0.3970873786 | H32: 0.3970873786 | I32: 0.3970873786 | J32: 0.3970873786 | K32: 0.3970873786 | L32: 0.3970873786 | M32: 0.3970873786 | N32: 0.3970873786 | O32: 0.3970873786 | P32: 0.3970873786 | Q32: 0.3970873786 | R32: =+R31/D31 -> 0.1717831434
C33: ='Budget by Month Master'!B33 -> Mark-up Equivalent | D33: =IF(D12=0,0,+D12/D29-1) -> 0.6129032258 | E33: =IF(E12=0,0,+E12/E29-1) -> 0.6586151369 | F33: 0.6586151369 | G33: 0.6586151369 | H33: 0.6586151369 | I33: 0.6586151369 | J33: 0.6586151369 | K33: 0.6586151369 | L33: 0.6586151369 | M33: 0.6586151369 | N33: 0.6586151369 | O33: 0.6586151369 | P33: 0.6586151369 | Q33: 0.6586151369 | R33: 1.163974654
C34: ='Budget by Month Master'!B34 -> Fixed Costs
C35: Location | D35: 40000 | E35: 3434.466019 | F35: 3434.466019 | G35: 3434.466019 | H35: 3434.466019 | I35: 3434.466019 | J35: 3434.466019 | K35: 3434.466019 | L35: 3434.466019 | M35: 3434.466019 | N35: 3434.466019 | O35: 3434.466019 | P35: 3434.466019 | Q35: =SUM(E35:P35) -> 41213.59223 | R35: =+Q35-D35 -> 1213.592233
C36: ='Budget by Month Master'!B36 -> % Revenue | D36: =+D35/D$12 -> 0.08 | E36: =+E35/E$12 -> 0.103710508 | F36: 0.07353443345 | G36: 0.06189932451 | H36: 0.08746493067 | I36: 0.06820015756 | J36: 0.07430904104 | K36: 0.0673828764 | L36: 0.06701869145 | M36: 0.06903646408 | N36: 0.06793661371 | O36: 0.07195008792 | P36: 0.08744215593 | Q36: 0.07350649351 | R36: =+R35/D35 -> 0.03033980583
C37: Administration | D37: 30000 | E37: 2575.849515 | F37: 2575.849515 | G37: 2575.849515 | H37: 2575.849515 | I37: 2575.849515 | J37: 2575.849515 | K37: 2575.849515 | L37: 2575.849515 | M37: 2575.849515 | N37: 2575.849515 | O37: 2575.849515 | P37: 2575.849515 | Q37: =SUM(E37:P37) -> 30910.19417 | R37: =+Q37-D37 -> 910.1941748
C38: ='Budget by Month Master'!B38 -> % Revenue | D38: =+D37/D$12 -> 0.06 | E38: =+E37/E$12 -> 0.07778288097 | F38: 0.05515082509 | G38: 0.04642449338 | H38: 0.065598698 | I38: 0.05115011817 | J38: 0.05573178078 | K38: 0.0505371573 | L38: 0.05026401859 | M38: 0.05177734806 | N38: 0.05095246028 | O38: 0.05396256594 | P38: 0.06558161695 | Q38: 0.05512987013 | R38: =+R37/D37 -> 0.03033980583
C39: Labor excluding Owner | D39: 50000 | E39: 4293.082524 | F39: 4293.082524 | G39: 4293.082524 | H39: 4293.082524 | I39: 4293.082524 | J39: 4293.082524 | K39: 4293.082524 | L39: 4293.082524 | M39: 4293.082524 | N39: 4293.082524 | O39: 4293.082524 | P39: 4293.082524 | Q39: =SUM(E39:P39) -> 51516.99029 | R39: =+Q39-D39 -> 1516.990291
C40: ='Budget by Month Master'!B40 -> % Revenue | D40: =+D39/D$12 -> 0.1 | E40: =+E39/E$12 -> 0.1296381349 | F40: 0.09191804182 | G40: 0.07737415563 | H40: 0.1093311633 | I40: 0.08525019695 | J40: 0.09288630129 | K40: 0.0842285955 | L40: 0.08377336431 | M40: 0.0862955801 | N40: 0.08492076713 | O40: 0.0899376099 | P40: 0.1093026949 | Q40: 0.09188311688 | R40: =+R39/D39 -> 0.03033980583
C41: Labor Owner | D41: 10000 | E41: 858.6165049 | F41: 858.6165049 | G41: 858.6165049 | H41: 858.6165049 | I41: 858.6165049 | J41: 858.6165049 | K41: 858.6165049 | L41: 858.6165049 | M41: 858.6165049 | N41: 858.6165049 | O41: 858.6165049 | P41: 858.6165049 | Q41: =SUM(E41:P41) -> 10303.39806 | R41: =+Q41-D41 -> 303.3980583
C42: ='Budget by Month Master'!B42 -> % Revenue | D42: =+D41/D$12 -> 0.02 | E42: =+E41/E$12 -> 0.02592762699 | F42: 0.01838360836 | G42: 0.01547483113 | H42: 0.02186623267 | I42: 0.01705003939 | J42: 0.01857726026 | K42: 0.0168457191 | L42: 0.01675467286 | M42: 0.01725911602 | N42: 0.01698415343 | O42: 0.01798752198 | P42: 0.02186053898 | Q42: 0.01837662338 | R42: =+R41/D41 -> 0.03033980583
C43: Interest Costs | D43: 0 | E43: 0 | F43: 0 | G43: 0 | H43: 0 | I43: 0 | J43: 0 | K43: 0 | L43: 0 | M43: 0 | N43: 0 | O43: 0 | P43: 0 | Q43: =SUM(E43:P43) -> 0 | R43: =+Q43-D43 -> 0
C44: ='Budget by Month Master'!B44 -> % Revenue | D44: =+D43/D$12 -> 0 | E44: =+E43/E$12 -> 0 | F44: 0 | G44: 0 | H44: 0 | I44: 0 | J44: 0 | K44: 0 | L44: 0 | M44: 0 | N44: 0 | O44: 0 | P44: 0 | Q44: 0 | R44: =+R43/D43 -> 
C45: Other | D45: 0 | E45: 0 | F45: 0 | G45: 0 | H45: 0 | I45: 0 | J45: 0 | K45: 0 | L45: 0 | M45: 0 | N45: 0 | O45: 0 | P45: 0 | Q45: =SUM(E45:P45) -> 0 | R45: =+Q45-D45 -> 0
C46: ='Budget by Month Master'!B46 -> % Revenue | D46: =+D45/D$12 -> 0 | E46: =+E45/E$12 -> 0 | F46: 0 | G46: 0 | H46: 0 | I46: 0 | J46: 0 | K46: 0 | L46: 0 | M46: 0 | N46: 0 | O46: 0 | P46: 0 | Q46: 0 | R46: =+R45/D45 -> 
C47: ='Budget by Month Master'!B47 -> Total Fixed Costs | D47: =+D35+D37+D39+D41+D43+D45 -> 130000 | E47: =+E35+E37+E39+E41+E43+E45 -> 11162.01456 | F47: 11162.01456 | G47: 11162.01456 | H47: 11162.01456 | I47: 11162.01456 | J47: 11162.01456 | K47: 11162.01456 | L47: 11162.01456 | M47: 11162.01456 | N47: 11162.01456 | O47: 11162.01456 | P47: 11162.01456 | Q47: 133944.1748 | R47: =+Q47-D47 -> 3944.174757
C48: ='Budget by Month Master'!B48 -> Total Fixed Costs % | D48: =+D47/D$12 -> 0.26 | E48: =+E47/E$12 -> 0.3370591509 | F48: 0.2389869087 | G48: 0.2011728046 | H48: 0.2842610247 | I48: 0.2216505121 | J48: 0.2415043834 | K48: 0.2189943483 | L48: 0.2178107472 | M48: 0.2243685083 | N48: 0.2207939945 | O48: 0.2338377857 | P48: 0.2841870068 | Q48: 0.2388961039 | R48: =+R47/D47 -> 0.03033980583
C50: ='Budget by Month Master'!B50 -> Total Expenses | D50: =+D47+D29 -> 440000 | E50: =+E47+E29 -> 31128.00404 | F50: 39321.37901 | G50: 44614.44603 | H50: 34836.45065 | I50: 41523.86393 | J50: 39027.84195 | K50: 41892.12021 | L50: 42059.11008 | M50: 41156.06102 | N50: 41641.64547 | O50: 39941.45001 | P50: 34842.61677 | Q50: 471984.9892 | R50: =+Q50-D50 -> 31984.98916
C52: ='Budget by Month Master'!B52 -> Operating Surplus | D52: =+D12-D50 -> 60000 | E52: =+E12-E50 -> 1987.888331 | F52: 7384.169104 | G52: 10870.26316 | H52: 4430.327399 | I52: 8834.759015 | J52: 7190.841155 | K52: 9077.298174 | L52: 9187.280227 | M52: 8592.518449 | N52: 8912.331718 | O52: 7792.557254 | P52: 4434.3885 | Q52: 88694.62249 | R52: =+Q52-D52 -> 28694.62249
C53: ='Budget by Month Master'!B53 -> Operating Surplus % | D53: =+D52/D$12 -> 0.12 | E53: =+E52/E$12 -> 0.06002822778 | F53: 0.1581004699 | G53: 0.195914574 | H53: 0.112826354 | I53: 0.1754368666 | J53: 0.1555829953 | K53: 0.1780930303 | L53: 0.1792766314 | M53: 0.1727188704 | N53: 0.1762933841 | O53: 0.1632495929 | P53: 0.1129003719 | Q53: 0.1581912747 | R53: =+R52/D52 -> 0.4782437082
C55: ='Budget by Month Master'!B55 -> LESS
C56: Depreciation Allowance | D56: 12500 | E56: 1073.270631 | F56: 1073.270631 | G56: 1073.270631 | H56: 1073.270631 | I56: 1073.270631 | J56: 1073.270631 | K56: 1073.270631 | L56: 1073.270631 | M56: 1073.270631 | N56: 1073.270631 | O56: 1073.270631 | P56: 1073.270631 | Q56: =SUM(E56:P56) -> 12879.24757 | R56: =+Q56-D56 -> 379.2475728
C58: ='Budget by Month Master'!B58 -> Business Return | D58: =+D52-D56 -> 47500 | E58: =+E52-E56 -> 914.6176996 | F58: 6310.898473 | G58: 9796.992534 | H58: 3357.056767 | I58: 7761.488384 | J58: 6117.570524 | K58: 8004.027543 | L58: 8114.009596 | M58: 7519.247818 | N58: 7839.061087 | O58: 6719.286623 | P58: 3361.117869 | Q58: 75815.37492 | R58: =+Q58-D58 -> 28315.37492
C59: ='Budget by Month Master'!B59 -> Business Return % | D59: =+D58/D$12 -> 0.095 | E59: =+E58/E$12 -> 0.02761869405 | F59: 0.1351209595 | G59: 0.1765710351 | H59: 0.08549356312 | I59: 0.1541243173 | J59: 0.13236142 | K59: 0.1570358815 | L59: 0.1583332904 | M59: 0.1511449754 | N59: 0.1550631923 | O59: 0.1407651904 | P59: 0.08557469813 | Q59: 0.1352204955 | R59: =+R58/D58 -> 0.5961131562

Sheet Instructions
B2: Instructions
B3: Overview
B4: Outline | D4: Forecast Budget is a streamlined tool for developing a 3 year business forecast and a 12 month budget. It requires minimal inputs and generates Optimistic to Pessimistic forecasts for your business. From your forecasts a 12 month master budget is built. You then have the capacity to refine this budget as required. The methodology used applies relationships between current data and relative indicators for future performance to produce a verifiable budget quickly and easily. This forecast and budget tool can be utilized for existing and proposed businesses, products, or services. Outputs include a 3 Year Forecast with Sensitivity Analysis, and a Budget by Month in tabular and graphical form.
B6: Input
B7: All inputs are in Blue cells on the Input, Analysis, and Budget Sheets. Click the tab, hyperlinks or buttons to access.
B8: =+Input!B9 -> Current Operating Performance Data | D8: This section reviews the current performance of your business for a full year period. It is designed to assess the level of expenses that vary with your sales (Variable Costs) and those that don't (Fixed Costs). It also allocates a realistic labor cost for the owners effort. The focus is on cash flow excluding assets and taxation. Broad expense categories are provided. Values can be based on the previous years tax return adjusted for current trading. Inputs do not have to be perfect but should reasonably reflect business operation. It forms the starting point for your budget. If you are building a budget for a new business or product input estimated base Revenue, Variable Cost and Fixed Cost data. To estimate your Base data annualize your expected trading for the first month (multiply it by 12). This will provide a reference point. Ensure your Variable Cost ratios are reasonable and the Fixed Costs reflect a full years trading.
B9: =+Input!B11 -> Business Name or Identifier | D9: Input a name for the business. This appears as an identifier on the Output Sheets.
B10: =+Input!B13 -> Business Revenue | D10: Input the Revenue generated by the business for the current year.
B11: Expenses | D11: Select your Expense input as Monetary or Percent. This allows you to input your Expenses directly in Monetary (Dollars, Pounds etc) or Percentage terms.
B12: =+Input!B16 -> Variable Costs | D12: Variable Costs vary with the volume of product or service you provide. Only include these costs in this section and allocate them into one of the six categories.
B13: =+Input!B17 -> Materials & Supplies | D13: Input the annual variable expense for materials and supplies directly related to producing your product or providing your service.
B14: =+Input!B18 -> Labor excluding Owner | D14: Input the annual variable expense for labor (excluding the owner) directly related to producing your product or providing your service. Labor expenses should include all associated on-costs and benefits.
B15: =+Input!B19 -> Labor Owner | D15: Input the annual value of labor provided by the owner that is directly related to producing your product or providing your service. This variable expense should reflect the effective labor effort and can be estimated as the cost of an employee who could replace the owner. Labor expenses should include all associated on-costs and benefits.
B16: =+Input!B20 -> Distribution | D16: Input the annual variable expense for distribution of your product or service. This may include freight costs, packaging, and vehicle running costs.
B17: =+Input!B21 -> Marketing | D17: Input the annual variable expense for marketing. Include advertising, promotional publications, sponsorships, client functions, and any marketing or sales expense. Marketing is not essentially a variable expense, however it is assumed that marketing does influence the level of sales and a relationship exists between the level of marketing and the level of sales. It is on this basis that it forms a component of variable costs.
B18: =+Input!B22 -> Other | D18: Input any annual variable expenses not already accounted for.
B19: =+Input!B23 -> Total Variable Costs | D19: This is the sum of the variable expenses. It is expressed as a monetary value and as a percentage of revenue.
B20: =+Input!B24 -> Fixed Costs | D20: Fixed Costs are expenses which remain constant (up to a point) while the volume of sales vary. Only include these costs in this section and allocate them into one of the six categories.
B21: =+Input!B25 -> Location | D21: Input the annual fixed location expense. Include rent, power and light, maintenance, building insurance, security, and cleaning. If you own the property do not include purchase or finance costs.
B22: =+Input!B26 -> Administration | D22: Input the annual fixed administration expense. Include office phone, equipment rental costs, and stationary.
B23: =+Input!B27 -> Labor excluding Owner | D23: Input the annual fixed labor expense (excluding owner). This should include any labor expense not already accounted for in variable costs. Labor expenses should include all associated on-costs and benefits.
B24: =+Input!B28 -> Labor Owner | D24: Input the annual value of fixed labor provided by the owner. This should include the value of any labor not already accounted for in variable costs. This fixed expense should reflect the effective labor effort and can be estimated as the cost of an employee who could replace the owner. Labor expenses should include all associated on-costs and benefits.
B25: =+Input!B29 -> Interest Costs | D25: Input the annual fixed Interest Cost. Include only the interest component of loan repayments. Principle components reflect assets.
B26: =+Input!B30 -> Other | D26: Input any annual fixed cost expenses not already accounted for.
B27: =+Input!B31 -> Total Fixed Costs | D27: This is the sum of the Fixed Cost expenses. It is expressed as a monetary value and as a percentage of revenue.
B28: =+Input!B32 -> Operating Surplus | D28: Operating Surplus reflects the before tax operating profit/loss of the business for the full years trading. It is calculated as the Revenue less Total Variable Costs less Total Fixed Costs. It excludes asset investment. Assets include property, equipment, and capital reinvestment in the business. The Operating Surplus represents the day to day (short term) business performance.
B29: =+Input!B33 -> Owner Cash Flow | D29: Owner Cash Flow is the Operating Surplus plus the value of any Labor provided by the Owner. If the owner provides no labor for the business Owner Cash flow and Operating Surplus will be equal.
B30: =+Input!B36 -> Forecast Data | D30: This section considers factors that influence future business performance. A relative indicator is used to reflect unit changes in these factors. The base year relative indicator for each factor is defined as 100%. Relative indicators for each of the next three years are applied to reflect likely changes in the unit cost or strength of the factor. Each indicator is relative to the prior year. A 10% increase from the previous year is reflected by a relative indicator of 110%. A 10% decrease from the previous year is reflected by a relative indicator of 90%. Relative indicators for costs reflect changes in the base unit of the expense such as labor costs per hour or material costs per unit.
B31: =+Input!B38 -> Relative Indicator | D31: Relative Indicators are required for each factor for Years 1 to 3. If there is no change from the previous year the Relative Indicator is 100%. You have provided Revenue and Costs details for the Current Year. Year 1 is the year following the Current Year, Year 2 follows Year 1, and Year 3 follows Year 2.
B32: =+Input!B39 -> Level of Competition | D32: Input the percentage relative indicator to reflect the level of change from the previous year. Consider the number of competitors, competitor strategies, potential new entrants. This indicator has an inverse relationship to forecast Business Revenue. All things being equal as the level of competition increases Business Revenue decreases.
B33: =+Input!B40 -> Market Strength | D33: Input the percentage relative indicator to reflect the level of change from the previous year. Consider market growth, technology & regulatory impacts and customer needs. Market strength is an indicator of the demand for the type of product or service you provide. This indicator has a direct relationship to forecast Business Revenue. All things being equal as market strength increases Business Revenue increases.
B34: =+Input!B41 -> Materials & Supplies Costs | D34: Input the percentage relative indicator to reflect the level of change from the previous year. Consider the potential changes in supplier pricing, sources of supply, your bargaining power, demand for materials, and possible alternative materials. This indicator has a direct relationship to forecast Materials & Supplies expenses. All things being equal as the unit cost of materials and supplies increases this variable expense increases.
B35: =+Input!B42 -> Labor Costs | D35: Input the percentage relative indicator to reflect the level of change from the previous year. Consider market forces and availability of skilled staff. This indicator has a direct relationship to forecast variable and fixed Labor excluding Owner, and Labor Owner expenses. All things being equal as the unit labor costs increase these labor expenses increase.
B36: =+Input!B43 -> Interest Rates | D36: Input the percentage relative indicator to reflect the level of change from the previous year. This is percentage change not actual values. For a current interest rate of 6% a relative indicator of 110% in Year 1 equates to 6.6%, a relative indicator of 110% in Year 2 takes this to 7.26%. This indicator has a direct relationship to forecast Interest expenses. All things being equal as interest rates increase this fixed expense increases.
B37: =+Input!B44 -> Business Market Position | D37: Input the percentage relative indicator to reflect the level of change from the previous year. Consider your position in the market, and the impact of your current actions. This is a measure of your standing relative to the competition as perceived by potential consumers. If things will remain much the same input 100%, indicating no change over the previous year. If you have actions to improve the position of your business by 10% then the input would be 110%. This indicator has a direct relationship to forecast Business Revenue. All thing being equal as market position increases Business Revenue increases. Actions contributing to the business position must be substantiated and implemented to have an impact.
B38: =+Input!B45 -> Variable Cost Efficiency | D38: Input the percentage relative indicator to reflect the level of change from the previous year. This should reflect changes in the relationship between your variable costs and revenue. If you have actions to improve your variable cost efficiency (decrease variable costs) by 10% over the previous year input 110%. Consider changes in processes, distribution or the materials used. This indicator has an inverse relationship to forecast variable Materials & Supplies, Labor excluding Owner, Labor Owner, Distribution, Marketing and Other expenses. All things being equal as variable cost efficiency increases less materials, labor, distribution and marketing resources are required resulting in a decrease in these expenses. Actions must be substantiated and implemented to have an impact.
B39: =+Input!B46 -> Fixed Cost Efficiency | D39: Input the percentage relative indicator to reflect the level of change from the previous year. Consider changes in administration processes and fixed labor requirements. This indicator has an inverse relationship to forecast fixed Administration, Labor excluding Owner, Labor Owner, and Other expenses. All things being equal as overhead efficiency increases less administration and labor resources are required resulting in a decrease in these expenses. It does not apply to Location and Finance expenses. Actions contributing to the business position must be substantiated and implemented to have an impact.
B40: =+Input!B48 -> Fixed Cost Flow-on | D40: Input the percentage Fixed Cost Flow-on. This indicates the estimated level of fixed cost adjustments to support revenue variations. Fixed Costs are generally considered a constant expense, however large sustained revenue variations place pressure on fixed costs and usually result in an increased fixed cost expense. This may include larger floor area, more administration costs, or higher financing. The Fixed Cost Flow-on percentage is the amount of increase in fixed cost expense for a 100% increase in revenue. An Fixed Cost Flow-on of 20% reflects a 20% increase in fixed cost expense for every 100% increase in revenue. If you own your property only the Interest Costs of the financed amount will be adjusted by the Fixed Cost Flow-on. This indicator has a direct relationship to all forecast fixed cost expenses. All things being equal as the Fixed Cost Flow-on increases the fixed cost expense relative the revenue will increase.
B41: =+Input!B50 -> Owners Time Commitment to Business | D41: Input the percentage of work time the owner commits to the business. This is used to determine the owners return for effort and indicates the available amount of owner resource. Available resource will be applied to any forecast labor increase in fixed, then variable costs where the owner currently contributes.
B42: =+Input!B51 -> Replacement Value of Business Assets | D42: Input the replacement value of physical business assets. Exclude property. Consider vehicles, plant, and equipment. Annual replacement costs for these business assets are calculated as the Replacement Value divided by the Asset Life. This provides for constant reinvestment to maintain the business. Property (Real Estate) is treated as a constant, depreciation and capital gain are assumed to balance each other out.
B43: =+Input!B52 -> Life of Assets (years) | D43: Input the average life of the assets. The Replacement Value of Business Assets will be divided by the Life of Assets to provide an indication of annual asset Depreciation Allowance. This will be used in determining the Business Return.
B44: =+Input!B57 -> Sensitivity Analysis | D44: Sensitivity Analysis allows you to adjust your Relative Indicators by a set percentage to generate Optimistic and Pessimistic Forecasts.
B45: Optimistic Input | D45: Input the percentage improvement in Relative Indicators to generate an Optimistic Forecast. If you feel it is "reasonably likely" your Relative Indicators may be 20% too low, input 20%.
B46: Pessimistic Input | D46: Input the percentage degrade in Relative Indicators to generate a Pessimistic Forecast. If you feel it is "reasonably likely" your Relative Indicators may be 20% too high, input 20%.
B47: =+'Sensitivity Analysis'!B10 -> Business Revenue | D47: This is the forecast revenue generated by the business.
B48: =+'Sensitivity Analysis'!B11 -> Optimistic | D48: This is the forecast based on your Optimistic improvement to Relative Indicators.
B49: =+'Sensitivity Analysis'!B12 -> Expected | D49: This is the forecast based on the Relative Indicators you provided as input.
B50: =+'Sensitivity Analysis'!B13 -> Pessimistic | D50: This is the forecast based on your Pessimistic degradation of Relative Indicators.
B51: =+'Sensitivity Analysis'!B14 -> Operating Surplus | D51: This is the Revenue less Variable and Fixed costs. The Operating Surplus represents the day to day (short term) business performance.
B52: =+'Sensitivity Analysis'!B18 -> Business Return | D52: Business Return is the Operating Surplus less a Depreciation Allowance. A Depreciation Allowance is required for the long term maintenance of the business. It is calculated as the Replacement Value of Business Assets divided by the Asset Lifetime. If the Depreciation Allowance is not reinvested business performance will decrease. The Business Return provides a longer term indicator of business performance.
B53: =+Input!B58 -> Expected Results | D53: Full tabular results for your Expected Forecast.
B54: =+Input!B59 -> Optimistic Results | D54: Full tabular results for your Optimistic Forecast.
B55: =+Input!B60 -> Pessimistic Results | D55: Full tabular results for your Optimistic Forecast.
B56: =+Input!B61 -> Forecast Revenue Chart | D56: 3 Year Forecast Revenue Chart; Optimistic, Expected and Pessimistic.
B57: =+Input!B62 -> Forecast Surplus Chart | D57: 3 Year Forecast Operating Surplus Chart; Optimistic, Expected, and Pessimistic.
B58: =+Input!B63 -> Forecast Return Chart | D58: 3 Year Forecast Return Chart; Optimistic, Expected, and Pessimistic. Return is the Operating Surplus less the Depreciation Allowance.
B59: =+Input!B64 -> Operating Surplus Chart | D59: 3 Year Expected Operating Surplus Chart including Variable and Fixed costs.
B60: =+Input!B65 -> Budget by Month Master | D60: The Budget by Month Master builds a monthly budget for your Year 1 Forecast. This is done by using the Current Year and Year 1 Forecast data. Revenue for the budget year consists of 2 components. Base Revenue, which is the same as the Current Year (no change year on year), and Growth Revenue, which is the difference between Current Year Revenue and Year 1 Forecast Revenue. Base Revenue is allocated to each month according to the Percentage Contributor you input for the month. If all months contribute equal revenue the Percentage Contributor will be 8.3333% (1/12) for all months. This is unlikely as the revenue of most businesses tends to vary due to seasonal influences such as weather, holiday periods, etc. Your Percentage Contributor is used to incorporate these revenue variations.
D61: Growth Revenue is distributed across the months by considering the Percentage Contributor and the Compounding Growth Affect. If you secure one new customer a month to generate your Growth Revenue then in month 1 you have Growth Revenue from one new customer, in month 2 you have Growth Revenue from 2 new customers (the customer secured in month 1 and the customer secured in month 2). This Compounding Growth Affect is adjusted by the Percentage Contributor to calculate the amount of Growth Revenue allocated to each month. Imagine the Percentage Contributor for month 2 is half that of month 1 due to seasonal factors halving the number of customers in month 2. The average number of new customers you could secure in month 2 will also be halved by this downturn in demand resulting in a decrease in the amount of Growth Revenue that can be secured.
D62: Total Revenue for each month is Base plus Growth Revenue. Variable expenses are calculated as a percentage of Total Revenue based on your Year 1 Forecast. Their actual amount varies with revenue but their percentage remains constant over the year. Fixed Costs and Depreciation Allowance are allocated equally over the months based on your Year 1 Forecast. Their amount remains constant regardless of revenue variations.
B63: =+'Budget by Month Master'!B6 -> Budget Month | D63: Input the first month of your budget year. Following months are calculated as the preceding month plus 31 days.
B64: =+'Budget by Month Master'!B9 -> Percentage Contributor | D64: For the first 11 months of the year input the Percentage Contributor indicating the percentage of annual revenue the month would provide if there was no revenue growth. The percentage for the 12th month of the year is calculated to ensure the annual total is 100%. Use the 12th month percentage as a check on your inputs. The Base Revenue for each month is calculated as the Percentage Contributor multiplied by the Total Base Revenue for the Budget Year.
B65: =+Input!B66 -> Budget by Month Master Chart | D65: View Revenue, Operating Surplus, and Business Return for Year 1 as built by the Budget by Month Master.
B66: =+Input!B67 -> Budget by Month | D66: Budget by Month allows you to update all cell data to match the Budget by Month Master when you click an Update All Button; update cell data to Master by row when you click the adjacent Update Button; and change any input within a blue cell by simply overwriting the existing data. This allows you to fully refine your budget and recalculates all percentages and totals based your inputs. Adjusting revenue and expense amounts will change your budget ratios i.e. Variable Cost % etc, beware. If you believe major adjustment is required it is recommended you review and adjust your Input Sheet data to generate an improved Master Budget. You can then refine it here to produce your Budget by Month. When you click an Update Button any existing data in the updated cells is overwritten and can not be recovered. It is replaced with data from the Budget by Month Master.
B67: =+Input!B68 -> Budget by Month Chart | D67: View Revenue, Operating Surplus, and Business Return as defined in Budget by Month.

Sheet Worksheet (hidden)
B2: Expected Forecast | J2: Optimistic Forecast improved by | K2: =+'Sensitivity Analysis'!E7 -> 0.2 | Q2: Pessimistic Forecast degraded by | R2: =+'Sensitivity Analysis'!E8 -> 0.2
B3: =+Input!C11 -> Acme Widgets | J3: =+$B3 -> Acme Widgets | Q3: =+$B3 -> Acme Widgets
B4: Expected | C4: =+C54 -> Current Year | D4: =+D54 -> Year 1 | E4: =+E54 -> Year 2 | F4: =+F54 -> Year 3 | G4: =+G81 -> 3 Year Average | J4: Optimistic | K4: =+K54 -> Current Year | L4: =+L54 -> Year 1 | M4: =+M54 -> Year 2 | N4: =+N54 -> Year 3 | O4: =+O81 -> 3 Year Average | Q4: Pessimistic | R4: =+R54 -> Current Year | S4: =+S54 -> Year 1 | T4: =+T54 -> Year 2 | U4: =+U54 -> Year 3 | V4: =+V81 -> 3 Year Average
B5: =+Input!B13 -> Business Revenue | C5: =+Input!C13 -> 500000 | D5: =+C5*D56*D60/D55 -> 560679.6117 | E5: =+D5*E56*E60/E55 -> 588713.5922 | F5: =+E5*F56*F60/F55 -> 625128.866 | G5: =AVERAGE(D5:F5) -> 591507.3566 | J5: =+$B5 -> Business Revenue | K5: =+C5 -> 500000 | L5: =+K5*L56*L60/L55 -> 579687.5 | M5: =+L5*M56*M60/M55 -> 614468.75 | N5: =+M5*N56*N60/N55 -> 660362.6815 | O5: =AVERAGE(L5:N5) -> 618172.9772 | Q5: =+$B5 -> Business Revenue | R5: =+C5 -> 500000 | S5: =+R5*S56*S60/S55 -> 542084.9421 | T5: =+S5*T56*T60/T55 -> 563768.3398 | U5: =+T5*U56*U60/U55 -> 591494.6516 | V5: =AVERAGE(S5:U5) -> 565782.6445
B6: =+Input!B15 -> Expenses | J6: =+$B6 -> Expenses | Q6: =+$B6 -> Expenses
B7: =+Input!B16 -> Variable Costs | J7: Variable Costs | Q7: Variable Costs
B8: =+Input!B17 -> Materials & Supplies | C8: =IF(Input!C$15=Input!B$81,Input!C$17,Input!D$17) -> 10000 | D8: =+D5*$C9*$D57/D61 -> 11431.33189 | E8: =+E5*$C9*$D57*$E57/D61/E61 -> 12002.89848 | F8: =+F5*$C9*$D57*$E57*F57/D61/E61/F61 -> 12745.34581 | G8: =AVERAGE(D8:F8) -> 12059.85873 | J8: Materials & Supplies | K8: =+C8 -> 10000 | L8: =+L5*$C9*$D57/L61 -> 11750.4223 | M8: =+M5*$C9*$D57*$E57/L61/M61 -> 12337.94341 | N8: =+N5*$C9*$D57*$E57*N57/L61/M61/N61 -> 13259.44956 | O8: =AVERAGE(L8:N8) -> 12449.27176 | Q8: Materials & Supplies | R8: =+C8 -> 10000 | S8: =+S5*$C9*$D57/S61 -> 11116.97635 | T8: =+T5*$C9*$D57*$E57/S61/T61 -> 11672.82517 | U8: =+U5*$C9*$D57*$E57*U57/S61/T61/U61 -> 12246.89854 | V8: =AVERAGE(S8:U8) -> 11678.90002
B9: % Revenue | C9: =+C8/C$5 -> 0.02 | D9: =+D8/D5 -> 0.02038834951 | E9: =+E8/E5 -> 0.02038834951 | F9: =+F8/F5 -> 0.02038834951 | G9: =+G8/G5 -> 0.02038834951 | J9: % Revenue | K9: =+K8/K$5 -> 0.02 | L9: =+L8/L5 -> 0.02027027027 | M9: =+M8/M5 -> 0.02007904131 | N9: =+N8/N5 -> 0.02007904131 | O9: =+O8/O5 -> 0.02013881586 | Q9: % Revenue | R9: =+R8/R$5 -> 0.02 | S9: =+S8/S5 -> 0.0205078125 | T9: =+T8/T5 -> 0.020705003 | U9: =+U8/U5 -> 0.020705003 | V9: =+V8/V5 -> 0.02064202593
B10: =+Input!B18 -> Labor excluding Owner | C10: =IF(Input!C$15=Input!B$81,Input!C$18,Input!D$18) -> 200000 | D10: =+D$5*($C11+$C13)*D58/D61-D12 -> 222477.9668 | E10: =+E$5*($C11+$C13)*D58*E58/D61/E61-E12 -> 229085.7617 | F10: =+F$5*($C11+$C13)*D58*E58*F58/D61/E61/F61-F12 -> 258404.2503 | G10: =AVERAGE(D10:F10) -> 236655.9929 | J10: Labor excluding Owner | K10: =+C10 -> 200000 | L10: =+L$5*($C11+$C13)*L58/L61-L12 -> 230170.397 | M10: =+M$5*($C11+$C13)*L58*M58/L61/M61-M12 -> 235320.7776 | N10: =+N$5*($C11+$C13)*L58*M58*N58/L61/M61/N61-N12 -> 265969.2734 | O10: =AVERAGE(L10:N10) -> 243820.1493 | Q10: Labor excluding Owner | R10: =+C10 -> 200000 | S10: =+S$5*($C11+$C13)*S58/S61-S12 -> 214900.3378 | T10: =+T$5*($C11+$C13)*S58*T58/S61/T61-T12 -> 222879.7805 | U10: =+U$5*($C11+$C13)*S58*T58*U58/S61/T61/U61-U12 -> 250882.6618 | V10: =AVERAGE(S10:U10) -> 229554.26
B11: % Revenue | C11: =+C10/C$5 -> 0.4 | D11: =+D10/D$5 -> 0.3968005296 | E11: =+E10/E$5 -> 0.3891293912 | F11: =+F10/F$5 -> 0.4133615713 | G11: =+G10/G$5 -> 0.4000896866 | J11: % Revenue | K11: =+K10/K$5 -> 0.4 | L11: =+L10/L$5 -> 0.3970594449 | M11: =+M10/M$5 -> 0.382966225 | N11: =+N10/N$5 -> 0.4027624226 | O11: =+O10/O$5 -> 0.3944205883 | Q11: % Revenue | R11: =+R10/R$5 -> 0.4 | S11: =+S10/S$5 -> 0.3964329594 | T11: =+T10/T$5 -> 0.3953392994 | U11: =+U10/U$5 -> 0.4241503472 | V11: =+V10/V$5 -> 0.4057287057
B12: =+Input!B19 -> Labor Owner | C12: =IF(Input!C$15=Input!B$81,Input!C$19,Input!D$19) -> 50000 | D12: =IF((D$5*$C13*D58/D61+D32)<=D$64,D$5*$C13*$D58/D61,(D$64-D32)) -> 49696.60194 | E12: =IF((E$5*$C13*D58*E58/D61/E61+E32)<=E$64,E$5*$C13*$D58*$E58/D61/E61,(E$64-E32)) -> 51254.04412 | F12: =IF((F$5*$C13*D58*E58*F58/D61/E61/F61+F32)<=F$64,F$5*$C13*$D58*$E58*F58/D61/E61/F61,(F$64-F32)) -> 54160.18269 | G12: =AVERAGE(D12:F12) -> 51703.60958 | J12: Labor Owner | K12: =+C12 -> 50000 | L12: =IF((L$5*$C13*L58/L61+L32)<=L$64,L$5*$C13*$D58/L61,(L$64-L32)) -> 49601.5625 | M12: =IF((M$5*$C13*L58*M58/L61/M61+M32)<=M$64,M$5*$C13*$D58*$E58/L61/M61,(M$64-M32)) -> 51165.70892 | N12: =IF((N$5*$C13*L58*M58*N58/L61/M61/N61+N32)<=N$64,N$5*$C13*$D58*$E58*N58/L61/M61/N61,(N$64-N32)) -> 54229.8967 | O12: =AVERAGE(L12:N12) -> 51665.72271 | Q12: Labor Owner | R12: =+C12 -> 50000 | S12: =IF((S$5*$C13*S58/S61+S32)<=S$64,S$5*$C13*$D58/S61,(S$64-S32)) -> 49789.57529 | T12: =IF((T$5*$C13*S58*T58/S61/T61+T32)<=T$64,T$5*$C13*$D58*$E58/S61/T61,(T$64-T32)) -> 51338.96954 | U12: =IF((U$5*$C13*S58*T58*U58/S61/T61/U61+U32)<=U$64,U$5*$C13*$D58*$E58*U58/S61/T61/U61,(U$64-U32)) -> 54084.55131 | V12: =AVERAGE(S12:U12) -> 51737.69871
B13: % Revenue | C13: =+C12/C$5 -> 0.1 | D13: =+D12/D$5 -> 0.08863636364 | E13: =+E12/E$5 -> 0.08706108504 | F13: =+F12/F$5 -> 0.0866384287 | G13: =+G12/G$5 -> 0.08740991807 | J13: % Revenue | K13: =+K12/K$5 -> 0.1 | L13: =+L12/L$5 -> 0.08556603774 | M13: =+M12/M$5 -> 0.08326820351 | N13: =+N12/N$5 -> 0.08212138302 | O13: =+O12/O$5 -> 0.08357809968 | Q13: % Revenue | R13: =+R12/R$5 -> 0.1 | S13: =+S12/S$5 -> 0.0918482906 | T13: =+T12/T$5 -> 0.0910639458 | U13: =+U12/U$5 -> 0.09143709274 | V13: =+V12/V$5 -> 0.09144447823
B14: =+Input!B20 -> Distribution | C14: =IF(Input!C$15=Input!B$81,Input!C$20,Input!D$20) -> 20000 | D14: =+D$5*$C15/D61 -> 21773.9655 | E14: =+E$5*$C15/D61/E61 -> 21773.9655 | F14: =+F$5*$C15/D61/E61/F61 -> 23120.80873 | G14: =AVERAGE(D14:F14) -> 22222.91324 | J14: Distribution | K14: =+C14 -> 20000 | L14: =+L$5*$C15/L61 -> 22381.75676 | M14: =+M$5*$C15/L61/M61 -> 22381.75676 | N14: =+N$5*$C15/L61/M61/N61 -> 24053.42324 | O14: =AVERAGE(L14:N14) -> 22938.97892 | Q14: Distribution | R14: =+C14 -> 20000 | S14: =+S$5*$C15/S61 -> 21175.19305 | T14: =+T$5*$C15/S61/T61 -> 21175.19305 | U14: =+U$5*$C15/S61/T61/U61 -> 22216.59599 | V14: =AVERAGE(S14:U14) -> 21522.32736
B15: % Revenue | C15: =+C14/C$5 -> 0.04 | D15: =+D14/D$5 -> 0.03883495146 | E15: =+E14/E$5 -> 0.03698566805 | F15: =+F14/F$5 -> 0.03698566805 | G15: =+G14/G$5 -> 0.03756996932 | J15: % Revenue | K15: =+K14/K$5 -> 0.04 | L15: =+L14/L$5 -> 0.03861003861 | M15: =+M14/M$5 -> 0.03642456473 | N15: =+N14/N$5 -> 0.03642456473 | O15: =+O14/O$5 -> 0.03710770248 | Q15: % Revenue | R15: =+R14/R$5 -> 0.04 | S15: =+S14/S$5 -> 0.0390625 | T15: =+T14/T$5 -> 0.03756009615 | U15: =+U14/U$5 -> 0.03756009615 | V15: =+V14/V$5 -> 0.03803992147
B16: =+Input!B21 -> Marketing | C16: =IF(Input!C$15=Input!B$81,Input!C$21,Input!D$21) -> 10000 | D16: =+D$5*$C17/D61 -> 10886.98275 | E16: =+E$5*$C17/D61/E61 -> 10886.98275 | F16: =+F$5*$C17/D61/E61/F61 -> 11560.40436 | G16: =AVERAGE(D16:F16) -> 11111.45662 | J16: Marketing | K16: =+C16 -> 10000 | L16: =+L$5*$C17/L61 -> 11190.87838 | M16: =+M$5*$C17/L61/M61 -> 11190.87838 | N16: =+N$5*$C17/L61/M61/N61 -> 12026.71162 | O16: =AVERAGE(L16:N16) -> 11469.48946 | Q16: Marketing | R16: =+C16 -> 10000 | S16: =+S$5*$C17/S61 -> 10587.59653 | T16: =+T$5*$C17/S61/T61 -> 10587.59653 | U16: =+U$5*$C17/S61/T61/U61 -> 11108.29799 | V16: =AVERAGE(S16:U16) -> 10761.16368
B17: % Revenue | C17: =+C16/C$5 -> 0.02 | D17: =+D16/D$5 -> 0.01941747573 | E17: =+E16/E$5 -> 0.01849283403 | F17: =+F16/F$5 -> 0.01849283403 | G17: =+G16/G$5 -> 0.01878498466 | J17: % Revenue | K17: =+K16/K$5 -> 0.02 | L17: =+L16/L$5 -> 0.01930501931 | M17: =+M16/M$5 -> 0.01821228236 | N17: =+N16/N$5 -> 0.01821228236 | O17: =+O16/O$5 -> 0.01855385124 | Q17: % Revenue | R17: =+R16/R$5 -> 0.02 | S17: =+S16/S$5 -> 0.01953125 | T17: =+T16/T$5 -> 0.01878004808 | U17: =+U16/U$5 -> 0.01878004808 | V17: =+V16/V$5 -> 0.01901996073
B18: =+Input!B22 -> Other | C18: =IF(Input!C$15=Input!B$81,Input!C$22,Input!D$22) -> 20000 | D18: =+D$5*$C19/D61 -> 21773.9655 | E18: =+E$5*$C19/D61/E61 -> 21773.9655 | F18: =+F$5*$C19/D61/E61/F61 -> 23120.80873 | G18: =AVERAGE(D18:F18) -> 22222.91324 | J18: Other | K18: =+C18 -> 20000 | L18: =+L$5*$C19/L61 -> 22381.75676 | M18: =+M$5*$C19/L61/M61 -> 22381.75676 | N18: =+N$5*$C19/L61/M61/N61 -> 24053.42324 | O18: =AVERAGE(L18:N18) -> 22938.97892 | Q18: Other | R18: =+C18 -> 20000 | S18: =+S$5*$C19/S61 -> 21175.19305 | T18: =+T$5*$C19/S61/T61 -> 21175.19305 | U18: =+U$5*$C19/S61/T61/U61 -> 22216.59599 | V18: =AVERAGE(S18:U18) -> 21522.32736
B19: % Revenue | C19: =+C18/C$5 -> 0.04 | D19: =+D18/D$5 -> 0.03883495146 | E19: =+E18/E$5 -> 0.03698566805 | F19: =+F18/F$5 -> 0.03698566805 | G19: =+G18/G$5 -> 0.03756996932 | J19: % Revenue | K19: =+K18/K$5 -> 0.04 | L19: =+L18/L$5 -> 0.03861003861 | M19: =+M18/M$5 -> 0.03642456473 | N19: =+N18/N$5 -> 0.03642456473 | O19: =+O18/O$5 -> 0.03710770248 | Q19: % Revenue | R19: =+R18/R$5 -> 0.04 | S19: =+S18/S$5 -> 0.0390625 | T19: =+T18/T$5 -> 0.03756009615 | U19: =+U18/U$5 -> 0.03756009615 | V19: =+V18/V$5 -> 0.03803992147
B20: =+Input!B23 -> Total Variable Costs | C20: =+C8+C10+C12+C14+C16+C18 -> 310000 | D20: =+D8+D10+D12+D14+D16+D18 -> 338040.8144 | E20: =+E8+E10+E12+E14+E16+E18 -> 346777.6181 | F20: =+F8+F10+F12+F14+F16+F18 -> 383111.8006 | G20: =AVERAGE(D20:F20) -> 355976.7444 | J20: Total Variable Costs | K20: =+K8+K10+K12+K14+K16+K18 -> 310000 | L20: =+L8+L10+L12+L14+L16+L18 -> 347476.7736 | M20: =+M8+M10+M12+M14+M16+M18 -> 354778.8218 | N20: =+N8+N10+N12+N14+N16+N18 -> 393592.1778 | O20: =AVERAGE(L20:N20) -> 365282.5911 | Q20: Total Variable Costs | R20: =+R8+R10+R12+R14+R16+R18 -> 310000 | S20: =+S8+S10+S12+S14+S16+S18 -> 328744.8721 | T20: =+T8+T10+T12+T14+T16+T18 -> 338829.5578 | U20: =+U8+U10+U12+U14+U16+U18 -> 372755.6016 | V20: =AVERAGE(S20:U20) -> 346776.6772
B21: Total Variable Costs % | C21: =IF(C20=0,0,+C20/C$5) -> 0.62 | D21: =IF(D20=0,0,+D20/D$5) -> 0.6029126214 | E21: =IF(E20=0,0,+E20/E$5) -> 0.5890429958 | F21: =IF(F20=0,0,+F20/F$5) -> 0.6128525196 | G21: =IF(G20=0,0,+G20/G$5) -> 0.6018128775 | J21: Total Variable Costs % | K21: =IF(K20=0,0,+K20/K$5) -> 0.62 | L21: =IF(L20=0,0,+L20/L$5) -> 0.5994208494 | M21: =IF(M20=0,0,+M20/M$5) -> 0.5773748816 | N21: =IF(N20=0,0,+N20/N$5) -> 0.5960242588 | O21: =IF(O20=0,0,+O20/O$5) -> 0.59090676 | Q21: Total Variable Costs % | R21: =IF(R20=0,0,+R20/R$5) -> 0.62 | S21: =IF(S20=0,0,+S20/S$5) -> 0.6064453125 | T21: =IF(T20=0,0,+T20/T$5) -> 0.6010084886 | U21: =IF(U20=0,0,+U20/U$5) -> 0.6301926833 | V21: =IF(V20=0,0,+V20/V$5) -> 0.6129150135
B22: Gross Profit | C22: =+C5-C20 -> 190000 | D22: =+D5-D20 -> 222638.7972 | E22: =+E5-E20 -> 241935.9742 | F22: =+F5-F20 -> 242017.0654 | G22: =+G5-G20 -> 235530.6123 | J22: Gross Profit | K22: =+K5-K20 -> 190000 | L22: =+L5-L20 -> 232210.7264 | M22: =+M5-M20 -> 259689.9282 | N22: =+N5-N20 -> 266770.5038 | O22: =+O5-O20 -> 252890.3861 | Q22: Gross Profit | R22: =+R5-R20 -> 190000 | S22: =+S5-S20 -> 213340.07 | T22: =+T5-T20 -> 224938.782 | U22: =+U5-U20 -> 218739.0499 | V22: =+V5-V20 -> 219005.9673
B23: Gross Profit % | C23: =IF(C22=0,0,+C22/C$5) -> 0.38 | D23: =IF(D22=0,0,+D22/D$5) -> 0.3970873786 | E23: =IF(E22=0,0,+E22/E$5) -> 0.4109570042 | F23: =IF(F22=0,0,+F22/F$5) -> 0.3871474804 | G23: =IF(G22=0,0,+G22/G$5) -> 0.3981871225 | J23: Gross Profit % | K23: =IF(K22=0,0,+K22/K$5) -> 0.38 | L23: =IF(L22=0,0,+L22/L$5) -> 0.4005791506 | M23: =IF(M22=0,0,+M22/M$5) -> 0.4226251184 | N23: =IF(N22=0,0,+N22/N$5) -> 0.4039757412 | O23: =IF(O22=0,0,+O22/O$5) -> 0.40909324 | Q23: Gross Profit % | R23: =IF(R22=0,0,+R22/R$5) -> 0.38 | S23: =IF(S22=0,0,+S22/S$5) -> 0.3935546875 | T23: =IF(T22=0,0,+T22/T$5) -> 0.3989915114 | U23: =IF(U22=0,0,+U22/U$5) -> 0.3698073167 | V23: =IF(V22=0,0,+V22/V$5) -> 0.3870849865
B24: Mark-up Equivalent | C24: =IF(C5=0,0,+C5/C20-1) -> 0.6129032258 | D24: =IF(D5=0,0,+D5/D20-1) -> 0.6586151369 | E24: =IF(E5=0,0,+E5/E20-1) -> 0.6976689428 | F24: =IF(F5=0,0,+F5/F20-1) -> 0.6317139409 | G24: =IF(G5=0,0,+G5/G20-1) -> 0.6616460653 | J24: Mark-up Equivalent | K24: =IF(K5=0,0,+K5/K20-1) -> 0.6129032258 | L24: =IF(L5=0,0,+L5/L20-1) -> 0.6682769726 | M24: =IF(M5=0,0,+M5/M20-1) -> 0.7319769734 | N24: =IF(N5=0,0,+N5/N20-1) -> 0.6777840588 | O24: =IF(O5=0,0,+O5/O20-1) -> 0.6923143678 | Q24: Mark-up Equivalent | R24: =IF(R5=0,0,+R5/R20-1) -> 0.6129032258 | S24: =IF(S5=0,0,+S5/S20-1) -> 0.6489533011 | T24: =IF(T5=0,0,+T5/T20-1) -> 0.6638700102 | U24: =IF(U5=0,0,+U5/U20-1) -> 0.5868162651 | V24: =IF(V5=0,0,+V5/V20-1) -> 0.6315475685
B25: =+Input!B24 -> Fixed Costs | J25: Fixed Costs | Q25: Fixed Costs
B26: =+Input!B25 -> Location | C26: =IF(Input!C$15=Input!B$81,Input!C$25,Input!D$25) -> 40000 | D26: =$C26+$C26*(D$5-$C$5)/$C$5*$C$63 -> 41213.59223 | E26: =$C26+$C26*(E$5-$C$5)/$C$5*$C$63 -> 41774.27184 | F26: =$C26+$C26*(F$5-$C$5)/$C$5*$C$63 -> 42502.57732 | G26: =AVERAGE(D26:F26) -> 41830.14713 | J26: Location | K26: =+C26 -> 40000 | L26: =$C26+$C26*(L$5-$C$5)/$C$5*$C$63 -> 41593.75 | M26: =$C26+$C26*(M$5-$C$5)/$C$5*$C$63 -> 42289.375 | N26: =$C26+$C26*(N$5-$C$5)/$C$5*$C$63 -> 43207.25363 | O26: =AVERAGE(L26:N26) -> 42363.45954 | Q26: Location | R26: =+C26 -> 40000 | S26: =$C26+$C26*(S$5-$C$5)/$C$5*$C$63 -> 40841.69884 | T26: =$C26+$C26*(T$5-$C$5)/$C$5*$C$63 -> 41275.3668 | U26: =$C26+$C26*(U$5-$C$5)/$C$5*$C$63 -> 41829.89303 | V26: =AVERAGE(S26:U26) -> 41315.65289
B27: % Revenue | C27: =+C26/C$5 -> 0.08 | D27: =+D26/D$5 -> 0.07350649351 | E27: =+E26/E$5 -> 0.07095856524 | F27: =+F26/F$5 -> 0.06799010513 | G27: =+G26/G$5 -> 0.07071788147 | J27: % Revenue | K27: =+K26/K$5 -> 0.08 | L27: =+L26/L$5 -> 0.07175202156 | M27: =+M26/M$5 -> 0.06882266185 | N27: =+N26/N$5 -> 0.06542958111 | O27: =+O26/O$5 -> 0.06853010582 | Q27: % Revenue | R27: =+R26/R$5 -> 0.08 | S27: =+S26/S$5 -> 0.07534188034 | T27: =+T26/T$5 -> 0.07321334648 | U27: =+U26/U$5 -> 0.07071897087 | V27: =+V26/V$5 -> 0.07302389582
B28: =+Input!B26 -> Administration | C28: =IF(Input!C$15=Input!B$81,Input!C$26,Input!D$26) -> 30000 | D28: =($C28+$C28*(D$5-$C$5)/$C$5*$C$63)/D62 -> 30910.19417 | E28: =($C28+$C28*(E$5-$C$5)/$C$5*$C$63)/D62/E62 -> 30716.37636 | F28: =($C28+$C28*(F$5-$C$5)/$C$5*$C$63)/D62/E62/F62 -> 29763.70961 | G28: =AVERAGE(D28:F28) -> 30463.42671 | J28: Administration | K28: =+C28 -> 30000 | L28: =($C28+$C28*(L$5-$C$5)/$C$5*$C$63)/L62 -> 31195.3125 | M28: =($C28+$C28*(M$5-$C$5)/$C$5*$C$63)/L62/M62 -> 30973.66333 | N28: =($C28+$C28*(N$5-$C$5)/$C$5*$C$63)/L62/M62/N62 -> 29854.65822 | O28: =AVERAGE(L28:N28) -> 30674.54468 | Q28: Administration | R28: =+C28 -> 30000 | S28: =($C28+$C28*(S$5-$C$5)/$C$5*$C$63)/S62 -> 30631.27413 | T28: =($C28+$C28*(T$5-$C$5)/$C$5*$C$63)/S62/T62 -> 30469.02076 | U28: =($C28+$C28*(U$5-$C$5)/$C$5*$C$63)/S62/T62/U62 -> 29690.73646 | V28: =AVERAGE(S28:U28) -> 30263.67712
B29: % Revenue | C29: =+C28/C$5 -> 0.06 | D29: =+D28/D$5 -> 0.05512987013 | E29: =+E28/E$5 -> 0.05217541562 | F29: =+F28/F$5 -> 0.04761211844 | G29: =+G28/G$5 -> 0.05150134884 | J29: % Revenue | K29: =+K28/K$5 -> 0.06 | L29: =+L28/L$5 -> 0.05381401617 | M29: =+M28/M$5 -> 0.05040722304 | N29: =+N28/N$5 -> 0.04520948724 | O29: =+O28/O$5 -> 0.04962129666 | Q29: % Revenue | R29: =+R28/R$5 -> 0.06 | S29: =+S28/S$5 -> 0.05650641026 | T29: =+T28/T$5 -> 0.0540452853 | U29: =+U28/U$5 -> 0.05019611992 | V29: =+V28/V$5 -> 0.05348993543
B30: =+Input!B27 -> Labor excluding Owner | C30: =IF(Input!C$15=Input!B$81,Input!C$27,Input!D$27) -> 50000 | D30: =($C30+$C30*(D$5-$C$5)/$C$5*$C$63)*$D58/D62+($C32+$C32*(D$5-$C$5)/$C$5*$C$63)*$D58/D62-D32 -> 51516.99029 | E30: =($C30+$C30*(E$5-$C$5)/$C$5*$C$63)*$D58*$E58/D62/E62+($C32+$C32*(E$5-$C$5)/$C$5*$C$63)*$D58*$E58/D62/E62-E32 -> 52729.77941 | F30: =($C30+$C30*(F$5-$C$5)/$C$5*$C$63)*$D58*$E58*F58/D62/E62/F62+($C32+$C32*(F$5-$C$5)/$C$5*$C$63)*$D58*$E58*F58/D62/E62/F62-F32 -> 53649.08657 | G30: =AVERAGE(D30:F30) -> 52631.95209 | J30: Labor excluding Owner | K30: =+C30 -> 50000 | L30: =($C30+$C30*(L$5-$C$5)/$C$5*$C$63)*$D58/L62+($C32+$C32*(L$5-$C$5)/$C$5*$C$63)*$D58/L62-L32 -> 51992.1875 | M30: =($C30+$C30*(M$5-$C$5)/$C$5*$C$63)*$D58*$E58/L62/M62+($C32+$C32*(M$5-$C$5)/$C$5*$C$63)*$D58*$E58/L62/M62-M32 -> 53171.45538 | N30: =($C30+$C30*(N$5-$C$5)/$C$5*$C$63)*$D58*$E58*N58/L62/M62/N62+($C32+$C32*(N$5-$C$5)/$C$5*$C$63)*$D58*$E58*N58/L62/M62/N62-N32 -> 53300.51648 | O30: =AVERAGE(L30:N30) -> 52821.38646 | Q30: Labor excluding Owner | R30: =+C30 -> 50000 | S30: =($C30+$C30*(S$5-$C$5)/$C$5*$C$63)*$D58/S62+($C32+$C32*(S$5-$C$5)/$C$5*$C$63)*$D58/S62-S32 -> 51052.12355 | T30: =($C30+$C30*(T$5-$C$5)/$C$5*$C$63)*$D58*$E58/S62/T62+($C32+$C32*(T$5-$C$5)/$C$5*$C$63)*$D58*$E58/S62/T62-T32 -> 52305.15231 | U30: =($C30+$C30*(U$5-$C$5)/$C$5*$C$63)*$D58*$E58*U58/S62/T62/U62+($C32+$C32*(U$5-$C$5)/$C$5*$C$63)*$D58*$E58*U58/S62/T62/U62-U32 -> 54027.24345 | V30: =AVERAGE(S30:U30) -> 52461.50644
B31: % Revenue | C31: =+C30/C$5 -> 0.1 | D31: =+D30/D$5 -> 0.09188311688 | E31: =+E30/E$5 -> 0.08956779682 | F31: =+F30/F$5 -> 0.08582084349 | G31: =+G30/G$5 -> 0.08897937025 | J31: % Revenue | K31: =+K30/K$5 -> 0.1 | L31: =+L30/L$5 -> 0.08969002695 | M31: =+M30/M$5 -> 0.08653239955 | N31: =+N30/N$5 -> 0.08071400455 | O31: =+O30/O$5 -> 0.08544758248 | Q31: % Revenue | R31: =+R30/R$5 -> 0.1 | S31: =+S30/S$5 -> 0.09417735043 | T31: =+T30/T$5 -> 0.09277773976 | U31: =+U30/U$5 -> 0.09134020621 | V31: =+V30/V$5 -> 0.09272378174
B32: =+Input!B28 -> Labor Owner | C32: =IF(Input!C$15=Input!B$81,Input!C$28,Input!D$28) -> 10000 | D32: =IF((($C32+$C32*(D$5-$C$5)/$C$5*$C$63)*$D58/D62)<=D$64,(($C32+$C32*(D$5-$C$5)/$C$5*$C$63)*$D58/D62),D$64) -> 10303.39806 | E32: =IF((($C32+$C32*(E$5-$C$5)/$C$5*$C$63)*$D58*E58/D62/E62)<=E$64,(($C32+$C32*(E$5-$C$5)/$C$5*$C$63)*$D58*$E58/D62/E62),E$64) -> 10545.95588 | F32: =IF((($C32+$C32*(F$5-$C$5)/$C$5*$C$63)*$D58*E58*F58/D62/E62/F62)<=F$64,(($C32+$C32*(F$5-$C$5)/$C$5*$C$63)*$D58*$E58*F58/D62/E62/F62),F$64) -> 10729.81731 | G32: =AVERAGE(D32:F32) -> 10526.39042 | J32: Labor Owner | K32: =+C32 -> 10000 | L32: =IF((($C32+$C32*(L$5-$C$5)/$C$5*$C$63)*$D58/L62)<=L$64,(($C32+$C32*(L$5-$C$5)/$C$5*$C$63)*$D58/L62),L$64) -> 10398.4375 | M32: =IF((($C32+$C32*(M$5-$C$5)/$C$5*$C$63)*$D58*M58/L62/M62)<=M$64,(($C32+$C32*(M$5-$C$5)/$C$5*$C$63)*$D58*$E58/L62/M62),M$64) -> 10634.29108 | N32: =IF((($C32+$C32*(N$5-$C$5)/$C$5*$C$63)*$D58*M58*N58/L62/M62/N62)<=N$64,(($C32+$C32*(N$5-$C$5)/$C$5*$C$63)*$D58*$E58*N58/L62/M62/N62),N$64) -> 10660.1033 | O32: =AVERAGE(L32:N32) -> 10564.27729 | Q32: Labor Owner | R32: =+C32 -> 10000 | S32: =IF((($C32+$C32*(S$5-$C$5)/$C$5*$C$63)*$D58/S62)<=S$64,(($C32+$C32*(S$5-$C$5)/$C$5*$C$63)*$D58/S62),S$64) -> 10210.42471 | T32: =IF((($C32+$C32*(T$5-$C$5)/$C$5*$C$63)*$D58*T58/S62/T62)<=T$64,(($C32+$C32*(T$5-$C$5)/$C$5*$C$63)*$D58*$E58/S62/T62),T$64) -> 10461.03046 | U32: =IF((($C32+$C32*(U$5-$C$5)/$C$5*$C$63)*$D58*T58*U58/S62/T62/U62)<=U$64,(($C32+$C32*(U$5-$C$5)/$C$5*$C$63)*$D58*$E58*U58/S62/T62/U62),U$64) -> 10805.44869 | V32: =AVERAGE(S32:U32) -> 10492.30129
B33: % Revenue | C33: =+C32/C$5 -> 0.02 | D33: =+D32/D$5 -> 0.01837662338 | E33: =+E32/E$5 -> 0.01791355936 | F33: =+F32/F$5 -> 0.0171641687 | G33: =+G32/G$5 -> 0.01779587405 | J33: % Revenue | K33: =+K32/K$5 -> 0.02 | L33: =+L32/L$5 -> 0.01793800539 | M33: =+M32/M$5 -> 0.01730647991 | N33: =+N32/N$5 -> 0.01614280091 | O33: =+O32/O$5 -> 0.0170895165 | Q33: % Revenue | R33: =+R32/R$5 -> 0.02 | S33: =+S32/S$5 -> 0.01883547009 | T33: =+T32/T$5 -> 0.01855554795 | U33: =+U32/U$5 -> 0.01826804124 | V33: =+V32/V$5 -> 0.01854475635
B34: =+Input!B29 -> Interest Costs | C34: =IF(Input!C$15=Input!B$81,Input!C$29,Input!D$29) -> 0 | D34: =+$C34*D59 -> 0 | E34: =+$C34*D59*E59 -> 0 | F34: =+$C34*D59*E59*F59 -> 0 | G34: =AVERAGE(D34:F34) -> 0 | J34: Interest Costs | K34: =+C34 -> 0 | L34: =+$C34*L59 -> 0 | M34: =+$C34*L59*M59 -> 0 | N34: =+$C34*L59*M59*N59 -> 0 | O34: =AVERAGE(L34:N34) -> 0 | Q34: Interest Costs | R34: =+C34 -> 0 | S34: =+$C34*S59 -> 0 | T34: =+$C34*S59*T59 -> 0 | U34: =+$C34*S59*T59*U59 -> 0 | V34: =AVERAGE(S34:U34) -> 0
B35: % Revenue | C35: =+C34/C$5 -> 0 | D35: =+D34/D$5 -> 0 | E35: =+E34/E$5 -> 0 | F35: =+F34/F$5 -> 0 | G35: =+G34/G$5 -> 0 | J35: % Revenue | K35: =+K34/K$5 -> 0 | L35: =+L34/L$5 -> 0 | M35: =+M34/M$5 -> 0 | N35: =+N34/N$5 -> 0 | O35: =+O34/O$5 -> 0 | Q35: % Revenue | R35: =+R34/R$5 -> 0 | S35: =+S34/S$5 -> 0 | T35: =+T34/T$5 -> 0 | U35: =+U34/U$5 -> 0 | V35: =+V34/V$5 -> 0
B36: =+Input!B30 -> Other | C36: =IF(Input!C$15=Input!B$81,Input!C$30,Input!D$30) -> 0 | D36: =($C36+$C36*(D$5-$C$5)/$C$5*$C$63)/D62 -> 0 | E36: =($C36+$C36*(E$5-$C$5)/$C$5*$C$63)/D62/E62 -> 0 | F36: =($C36+$C36*(F$5-$C$5)/$C$5*$C$63)/D62/E62/F62 -> 0 | G36: =AVERAGE(D36:F36) -> 0 | J36: Other | K36: =+C36 -> 0 | L36: =($C36+$C36*(L$5-$C$5)/$C$5*$C$63)/L62 -> 0 | M36: =($C36+$C36*(M$5-$C$5)/$C$5*$C$63)/L62/M62 -> 0 | N36: =($C36+$C36*(N$5-$C$5)/$C$5*$C$63)/L62/M62/N62 -> 0 | O36: =AVERAGE(L36:N36) -> 0 | Q36: Other | R36: =+C36 -> 0 | S36: =($C36+$C36*(S$5-$C$5)/$C$5*$C$63)/S62 -> 0 | T36: =($C36+$C36*(T$5-$C$5)/$C$5*$C$63)/S62/T62 -> 0 | U36: =($C36+$C36*(U$5-$C$5)/$C$5*$C$63)/S62/T62/U62 -> 0 | V36: =AVERAGE(S36:U36) -> 0
B37: % Revenue | C37: =+C36/C$5 -> 0 | D37: =+D36/D$5 -> 0 | E37: =+E36/E$5 -> 0 | F37: =+F36/F$5 -> 0 | G37: =+G36/G$5 -> 0 | J37: % Revenue | K37: =+K36/K$5 -> 0 | L37: =+L36/L$5 -> 0 | M37: =+M36/M$5 -> 0 | N37: =+N36/N$5 -> 0 | O37: =+O36/O$5 -> 0 | Q37: % Revenue | R37: =+R36/R$5 -> 0 | S37: =+S36/S$5 -> 0 | T37: =+T36/T$5 -> 0 | U37: =+U36/U$5 -> 0 | V37: =+V36/V$5 -> 0
B38: =+Input!B31 -> Total Fixed Costs | C38: =+C26+C28+C30+C32+C36+C34 -> 130000 | D38: =+D26+D28+D30+D32+D36+D34 -> 133944.1748 | E38: =+E26+E28+E30+E32+E36+E34 -> 135766.3835 | F38: =+F26+F28+F30+F32+F36+F34 -> 136645.1908 | G38: =AVERAGE(D38:F38) -> 135451.9164 | J38: Total Fixed Costs | K38: =+K26+K28+K30+K32+K36+K34 -> 130000 | L38: =+L26+L28+L30+L32+L36+L34 -> 135179.6875 | M38: =+M26+M28+M30+M32+M36+M34 -> 137068.7848 | N38: =+N26+N28+N30+N32+N36+N34 -> 137022.5316 | O38: =AVERAGE(L38:N38) -> 136423.668 | Q38: Total Fixed Costs | R38: =+R26+R28+R30+R32+R36+R34 -> 130000 | S38: =+S26+S28+S30+S32+S36+S34 -> 132735.5212 | T38: =+T26+T28+T30+T32+T36+T34 -> 134510.5703 | U38: =+U26+U28+U30+U32+U36+U34 -> 136353.3216 | V38: =AVERAGE(S38:U38) -> 134533.1377
B39: Total Fixed Costs % | C39: =IF(C38=0,0,+C38/C$5) -> 0.26 | D39: =IF(D38=0,0,+D38/D$5) -> 0.2388961039 | E39: =IF(E38=0,0,+E38/E$5) -> 0.230615337 | F39: =IF(F38=0,0,+F38/F$5) -> 0.2185872358 | G39: =IF(G38=0,0,+G38/G$5) -> 0.2289944746 | J39: Total Fixed Costs % | K39: =IF(K38=0,0,+K38/K$5) -> 0.26 | L39: =IF(L38=0,0,+L38/L$5) -> 0.2331940701 | M39: =IF(M38=0,0,+M38/M$5) -> 0.2230687643 | N39: =IF(N38=0,0,+N38/N$5) -> 0.2074958738 | O39: =IF(O38=0,0,+O38/O$5) -> 0.2206885015 | Q39: Total Fixed Costs % | R39: =IF(R38=0,0,+R38/R$5) -> 0.26 | S39: =IF(S38=0,0,+S38/S$5) -> 0.2448611111 | T39: =IF(T38=0,0,+T38/T$5) -> 0.2385919195 | U39: =IF(U38=0,0,+U38/U$5) -> 0.2305233382 | V39: =IF(V38=0,0,+V38/V$5) -> 0.2377823693
B41: Total Expenses | C41: =+C20+C38 -> 440000 | D41: =+D20+D38 -> 471984.9892 | E41: =+E20+E38 -> 482544.0016 | F41: =+F20+F38 -> 519756.9914 | G41: =AVERAGE(D41:F41) -> 491428.6607 | J41: Total Expenses | K41: =+K20+K38 -> 440000 | L41: =+L20+L38 -> 482656.4611 | M41: =+M20+M38 -> 491847.6066 | N41: =+N20+N38 -> 530614.7094 | O41: =AVERAGE(L41:N41) -> 501706.259 | Q41: Total Expenses | R41: =+R20+R38 -> 440000 | S41: =+S20+S38 -> 461480.3933 | T41: =+T20+T38 -> 473340.1281 | U41: =+U20+U38 -> 509108.9232 | V41: =AVERAGE(S41:U41) -> 481309.8149
B43: =+Input!B32 -> Operating Surplus | C43: =+C5-C41 -> 60000 | D43: =+D5-D41 -> 88694.62249 | E43: =+E5-E41 -> 106169.5907 | F43: =+F5-F41 -> 105371.8746 | G43: =AVERAGE(D43:F43) -> 100078.6959 | J43: Operating Surplus | K43: =+K5-K41 -> 60000 | L43: =+L5-L41 -> 97031.03885 | M43: =+M5-M41 -> 122621.1434 | N43: =+N5-N41 -> 129747.9721 | O43: =AVERAGE(L43:N43) -> 116466.7181 | Q43: Operating Surplus | R43: =+R5-R41 -> 60000 | S43: =+S5-S41 -> 80604.54875 | T43: =+T5-T41 -> 90428.21164 | U43: =+U5-U41 -> 82385.72831 | V43: =AVERAGE(S43:U43) -> 84472.82957
B44: Operating Surplus % | C44: =IF(C43=0,0,+C43/C$5) -> 0.12 | D44: =IF(D43=0,0,+D43/D$5) -> 0.1581912747 | E44: =IF(E43=0,0,+E43/E$5) -> 0.1803416671 | F44: =IF(F43=0,0,+F43/F$5) -> 0.1685602446 | G44: =IF(G43=0,0,+G43/G$5) -> 0.1691926479 | J44: Operating Surplus % | K44: =IF(K43=0,0,+K43/K$5) -> 0.12 | L44: =IF(L43=0,0,+L43/L$5) -> 0.1673850805 | M44: =IF(M43=0,0,+M43/M$5) -> 0.199556354 | N44: =IF(N43=0,0,+N43/N$5) -> 0.1964798674 | O44: =IF(O43=0,0,+O43/O$5) -> 0.1884047385 | Q44: Operating Surplus % | R44: =IF(R43=0,0,+R43/R$5) -> 0.12 | S44: =IF(S43=0,0,+S43/S$5) -> 0.1486935764 | T44: =IF(T43=0,0,+T43/T$5) -> 0.1603995919 | U44: =IF(U43=0,0,+U43/U$5) -> 0.1392839785 | V44: =IF(V43=0,0,+V43/V$5) -> 0.1493026172
B46: =+B88 -> LESS | J46: LESS | Q46: LESS
B47: =+B89 -> Depreciation Allowance | C47: =+C89 -> 12500 | D47: =+D89 -> 12879.24757 | E47: =+E89 -> 13054.45995 | F47: =+F89 -> 13282.05541 | G47: =+G89 -> 13071.92098 | J47: Depreciation Allowance | K47: =+K89 -> 12500 | L47: =+L89 -> 12998.04688 | M47: =+M89 -> 13215.42969 | N47: =+N89 -> 13502.26676 | O47: =+O89 -> 13238.58111 | Q47: Depreciation Allowance | R47: =+R89 -> 12500 | S47: =+S89 -> 12763.03089 | T47: =+T89 -> 12898.55212 | U47: =+U89 -> 13071.84157 | V47: =+V89 -> 12911.14153
B49: =+B90 -> Business Return | C49: 47500 | D49: 75815.37492 | E49: 93115.13073 | F49: 92089.81914 | G49: 87006.77493 | J49: Business Return | K49: =+K90 -> 47500 | L49: 84032.99198 | M49: 109405.7137 | N49: 116245.7054 | O49: 103228.137 | Q49: Business Return | R49: =+R90 -> 47500 | S49: 67841.51786 | T49: 77529.65952 | U49: 69313.88674 | V49: 71561.68804
B50: Business Return % | C50: =+C91 -> 0.095 | D50: =+D91 -> 0.1352204955 | E50: =+E91 -> 0.1581671155 | F50: =+F91 -> 0.1473133367 | G50: =+G91 -> 0.1470933099 | J50: Business Return % | K50: 0.095 | L50: 0.1449625738 | M50: 0.1780492722 | N50: 0.1760331233 | O50: 0.1669890805 | Q50: Business Return % | R50: 0.095 | S50: 0.1251492388 | T50: 0.1375204212 | U50: 0.1171843001 | V50: 0.1264826497
B53: Forecast | J53: Forecast | Q53: Forecast
B54: =+Input!B38 -> Relative Indicator | C54: Current Year | D54: Year 1 | E54: Year 2 | F54: Year 3 | J54: =+$B54 -> Relative Indicator | K54: Current Year | L54: Year 1 | M54: Year 2 | N54: Year 3 | Q54: =+$B54 -> Relative Indicator | R54: Current Year | S54: Year 1 | T54: Year 2 | U54: Year 3
B55: =+Input!B39 -> Level of Competition | C55: 1 | D55: =+Input!C39 -> 1.03 | E55: =+Input!D39 -> 1 | F55: =+Input!E39 -> 0.97 | J55: =+$B55 -> Level of Competition | K55: 1 | L55: =D55-(ABS(1-D55)*$K$2) -> 1.024 | M55: =E55-(ABS(1-E55)*$K$2) -> 1 | N55: =F55-(ABS(1-F55)*$K$2) -> 0.964 | Q55: =+$B55 -> Level of Competition | R55: 1 | S55: =D55+(ABS(1-D55)*$R$2) -> 1.036 | T55: =E55+(ABS(1-E55)*$R$2) -> 1 | U55: =F55+(ABS(1-F55)*$R$2) -> 0.976
B56: =+Input!B40 -> Market Strength | C56: 1 | D56: =+Input!C40 -> 1.05 | E56: =+Input!D40 -> 1 | F56: =+Input!E40 -> 1 | J56: =+$B56 -> Market Strength | K56: 1 | L56: =D56+(ABS(1-D56)*$K$2) -> 1.06 | M56: =E56+(ABS(1-E56)*$K$2) -> 1 | N56: =F56+(ABS(1-F56)*$K$2) -> 1 | Q56: =+$B56 -> Market Strength | R56: 1 | S56: =D56-(ABS(1-D56)*$R$2) -> 1.04 | T56: =E56-(ABS(1-E56)*$R$2) -> 1 | U56: =F56-(ABS(1-F56)*$R$2) -> 1
B57: =+Input!B41 -> Materials & Supplies Costs | C57: 1 | D57: =+Input!C41 -> 1.05 | E57: =+Input!D41 -> 1.05 | F57: =+Input!E41 -> 1 | J57: Materials & Supplies Costs | K57: 1 | L57: =D57-(ABS(1-D57)*$K$2) -> 1.04 | M57: =E57-(ABS(1-E57)*$K$2) -> 1.04 | N57: 1 | Q57: Materials & Supplies Costs | R57: 1 | S57: =D57+(ABS(1-D57)*$R$2) -> 1.06 | T57: =E57+(ABS(1-E57)*$R$2) -> 1.06 | U57: 1
B58: =+Input!B42 -> Labor Costs | C58: 1 | D58: =+Input!C42 -> 1 | E58: =+Input!D42 -> 1.03 | F58: =+Input!E42 -> 1.05 | J58: Labor Costs | K58: 1 | L58: =D58-(ABS(1-D58)*$K$2) -> 1 | M58: 1.024 | N58: 1.04 | Q58: Labor Costs | R58: 1 | S58: =D58+(ABS(1-D58)*$R$2) -> 1 | T58: 1.036 | U58: 1.06
B59: =+Input!B43 -> Interest Rates | C59: 1 | D59: =+Input!C43 -> 1 | E59: =+Input!D43 -> 1.05 | F59: =+Input!E43 -> 0.95 | J59: Interest Rates | K59: 1 | L59: =D59-(ABS(1-D59)*$K$2) -> 1 | M59: 1.04 | N59: 0.94 | Q59: Interest Rates | R59: 1 | S59: =D59+(ABS(1-D59)*$R$2) -> 1 | T59: 1.06 | U59: 0.96
B60: =+Input!B44 -> Business Market Position | C60: 1 | D60: =+Input!C44 -> 1.1 | E60: =+Input!D44 -> 1.05 | F60: =+Input!E44 -> 1.03 | J60: Business Market Position | K60: 1 | L60: =D60+(ABS(1-D60)*$K$2) -> 1.12 | M60: =E60+(ABS(1-E60)*$K$2) -> 1.06 | N60: 1.036 | Q60: Business Market Position | R60: 1 | S60: =D60-(ABS(1-D60)*$R$2) -> 1.08 | T60: 1.04 | U60: 1.024
B61: =+Input!B45 -> Variable Cost Efficiency | C61: 1 | D61: =+Input!C45 -> 1.03 | E61: =+Input!D45 -> 1.05 | F61: =+Input!E45 -> 1 | J61: Variable Cost Efficiency | K61: 1 | L61: =D61+(ABS(1-D61)*$K$2) -> 1.036 | M61: 1.06 | N61: 1 | Q61: Variable Cost Efficiency | R61: 1 | S61: 1.024 | T61: 1.04 | U61: 1
B62: =+Input!B46 -> Fixed Cost Efficiency | C62: 1 | D62: =+Input!C46 -> 1 | E62: =+Input!D46 -> 1.02 | F62: =+Input!E46 -> 1.05 | J62: Fixed Cost Efficiency | K62: 1 | L62: =D62+(ABS(1-D62)*$K$2) -> 1 | M62: 1.024 | N62: 1.06 | Q62: Fixed Cost Efficiency | R62: 1 | S62: 1 | T62: 1.016 | U62: 1.04
B63: =+Input!B48 -> Fixed Cost Flow-on | C63: =+Input!C48 -> 0.25 | J63: Fixed Cost Flow-on | K63: =$C$63*(1-$K$2) -> 0.2 | Q63: Fixed Cost Flow-on | R63: =$C$63*(1+$R$2) -> 0.3
B64: Owners Max Business Labor Earnings | C64: =+D76 -> 60000 | D64: =+C64*D$58 -> 60000 | E64: =+D64*$E$58 -> 61800 | F64: =+E64*$F$58 -> 64890 | J64: =+B64 -> Owners Max Business Labor Earnings | K64: =+L76 -> 60000 | L64: =+K64*L$58 -> 60000 | M64: =+L64*$E$58 -> 61800 | N64: =+M64*$F$58 -> 64890 | Q64: =+B64 -> Owners Max Business Labor Earnings | R64: =+C64 -> 60000 | S64: =+R64*S$58 -> 60000 | T64: =+S64*$E$58 -> 61800 | U64: =+T64*$F$58 -> 64890
B65: =+B5 -> Business Revenue | C65: =+C5 -> 500000 | D65: =+D5 -> 560679.6117 | E65: =+E5 -> 588713.5922 | F65: =+F5 -> 625128.866 | J65: =+J5 -> Business Revenue | K65: =+K5 -> 500000 | L65: =+L5 -> 579687.5 | M65: =+M5 -> 614468.75 | N65: =+N5 -> 660362.6815 | Q65: =+Q5 -> Business Revenue | R65: =+R5 -> 500000 | S65: =+S5 -> 542084.9421 | T65: =+T5 -> 563768.3398 | U65: =+U5 -> 591494.6516
B66: =+B20 -> Total Variable Costs | C66: 310000 | D66: 338040.8144 | E66: 346777.6181 | F66: 383111.8006 | J66: =+J20 -> Total Variable Costs | K66: 310000 | L66: 347476.7736 | M66: 354778.8218 | N66: 393592.1778 | Q66: =+Q20 -> Total Variable Costs | R66: 310000 | S66: 328744.8721 | T66: 338829.5578 | U66: 372755.6016
B67: Total Variable Costs % | C67: 0.62 | D67: 0.6029126214 | E67: 0.5890429958 | F67: 0.6128525196 | J67: Total Variable Costs % | K67: 0.62 | L67: 0.5994208494 | M67: 0.5773748816 | N67: 0.5960242588 | Q67: Total Variable Costs % | R67: 0.62 | S67: 0.6064453125 | T67: 0.6010084886 | U67: 0.6301926833
B68: =+B38 -> Total Fixed Costs | C68: 130000 | D68: 133944.1748 | E68: 135766.3835 | F68: 136645.1908 | J68: =+J38 -> Total Fixed Costs | K68: 130000 | L68: 135179.6875 | M68: 137068.7848 | N68: 137022.5316 | Q68: =+Q38 -> Total Fixed Costs | R68: 130000 | S68: 132735.5212 | T68: 134510.5703 | U68: 136353.3216
B69: Total Fixed Costs % | C69: 0.26 | D69: 0.2388961039 | E69: 0.230615337 | F69: 0.2185872358 | J69: Total Fixed Costs % | K69: 0.26 | L69: 0.2331940701 | M69: 0.2230687643 | N69: 0.2074958738 | Q69: Total Fixed Costs % | R69: 0.26 | S69: 0.2448611111 | T69: 0.2385919195 | U69: 0.2305233382
B70: =+B43 -> Operating Surplus | C70: 60000 | D70: 88694.62249 | E70: 106169.5907 | F70: 105371.8746 | J70: =+J43 -> Operating Surplus | K70: 60000 | L70: 97031.03885 | M70: 122621.1434 | N70: 129747.9721 | Q70: =+Q43 -> Operating Surplus | R70: 60000 | S70: 80604.54875 | T70: 90428.21164 | U70: 82385.72831
B71: Operating Surplus % | C71: 0.12 | D71: 0.1581912747 | E71: 0.1803416671 | F71: 0.1685602446 | J71: Operating Surplus % | K71: 0.12 | L71: 0.1673850805 | M71: 0.199556354 | N71: 0.1964798674 | Q71: Operating Surplus % | R71: 0.12 | S71: 0.1486935764 | T71: 0.1603995919 | U71: 0.1392839785
B73: Investment | J73: Investment | Q73: Investment
B74: Owners Current Business Labor Earnings | D74: =+C12+C32 -> 60000 | J74: Owners Current Business Labor Earnings | L74: =+K12+K32 -> 60000 | Q74: Owners Current Business Labor Earnings | S74: =+R12+R32 -> 60000
B75: =+Input!B50 -> Owners Time Commitment to Business | D75: =+Input!C50 -> 1 | J75: =+B75 -> Owners Time Commitment to Business | L75: =+D75 -> 1 | Q75: =+B75 -> Owners Time Commitment to Business | S75: =+D75 -> 1
B76: Owners Maximum Business Labor Earnings | D76: =+D74/D75 -> 60000 | J76: Owners Maximum Business Labor Earnings | L76: =+L74/L75 -> 60000 | Q76: Owners Maximum Business Labor Earnings | S76: =+S74/S75 -> 60000
B77: =+Input!B51 -> Replacement Value of Business Assets | D77: =+Input!C51 -> 100000 | J77: =+B77 -> Replacement Value of Business Assets | L77: =+D77 -> 100000 | Q77: =+B77 -> Replacement Value of Business Assets | S77: =+D77 -> 100000
B78: =+Input!B52 -> Life of Assets (years) | D78: =+Input!C52 -> 8 | J78: =+B78 -> Life of Assets (years) | L78: =+D78 -> 8 | Q78: =+B78 -> Life of Assets (years) | S78: =+D78 -> 8
B80: Return | J80: Return | Q80: Return
C81: =+C4 -> Current Year | D81: Year 1 | E81: Year 2 | F81: Year 3 | G81: 3 Year Average | K81: =+K4 -> Current Year | L81: Year 1 | M81: Year 2 | N81: Year 3 | O81: 3 Year Average | R81: =+R4 -> Current Year | S81: Year 1 | T81: Year 2 | U81: Year 3 | V81: 3 Year Average
B82: =+B5 -> Business Revenue | C82: 500000 | D82: 560679.6117 | E82: 588713.5922 | F82: 625128.866 | G82: =AVERAGE(D82:F82) -> 591507.3566 | J82: =+J5 -> Business Revenue | K82: 500000 | L82: 579687.5 | M82: 614468.75 | N82: 660362.6815 | O82: =AVERAGE(L82:N82) -> 618172.9772 | Q82: =+Q5 -> Business Revenue | R82: 500000 | S82: 542084.9421 | T82: 563768.3398 | U82: 591494.6516 | V82: =AVERAGE(S82:U82) -> 565782.6445
B83: =+B20 -> Total Variable Costs | C83: =+C20 -> 310000 | D83: =+D20 -> 338040.8144 | E83: =+E20 -> 346777.6181 | F83: =+F20 -> 383111.8006 | G83: =AVERAGE(D83:F83) -> 355976.7444 | J83: =+J20 -> Total Variable Costs | K83: =+K20 -> 310000 | L83: =+L20 -> 347476.7736 | M83: =+M20 -> 354778.8218 | N83: =+N20 -> 393592.1778 | O83: =AVERAGE(L83:N83) -> 365282.5911 | Q83: =+Q20 -> Total Variable Costs | R83: =+R20 -> 310000 | S83: =+S20 -> 328744.8721 | T83: =+T20 -> 338829.5578 | U83: =+U20 -> 372755.6016 | V83: =AVERAGE(S83:U83) -> 346776.6772
B84: =+B38 -> Total Fixed Costs | C84: =+C38 -> 130000 | D84: =+D38 -> 133944.1748 | E84: =+E38 -> 135766.3835 | F84: =+F38 -> 136645.1908 | G84: =AVERAGE(D84:F84) -> 135451.9164 | J84: =+J38 -> Total Fixed Costs | K84: =+K38 -> 130000 | L84: =+L38 -> 135179.6875 | M84: =+M38 -> 137068.7848 | N84: =+N38 -> 137022.5316 | O84: =AVERAGE(L84:N84) -> 136423.668 | Q84: =+Q38 -> Total Fixed Costs | R84: =+R38 -> 130000 | S84: =+S38 -> 132735.5212 | T84: =+T38 -> 134510.5703 | U84: =+U38 -> 136353.3216 | V84: =AVERAGE(S84:U84) -> 134533.1377
B86: =+B43 -> Operating Surplus | C86: =+C43 -> 60000 | D86: =+D43 -> 88694.62249 | E86: =+E43 -> 106169.5907 | F86: =+F43 -> 105371.8746 | G86: =AVERAGE(D86:F86) -> 100078.6959 | J86: =+J43 -> Operating Surplus | K86: =+K43 -> 60000 | L86: =+L43 -> 97031.03885 | M86: =+M43 -> 122621.1434 | N86: =+N43 -> 129747.9721 | O86: =AVERAGE(L86:N86) -> 116466.7181 | Q86: =+Q43 -> Operating Surplus | R86: =+R43 -> 60000 | S86: =+S43 -> 80604.54875 | T86: =+T43 -> 90428.21164 | U86: =+U43 -> 82385.72831 | V86: =AVERAGE(S86:U86) -> 84472.82957
B87: Business Surplus on Sales | C87: =+C86/C$82 -> 0.12 | D87: =+D86/D$82 -> 0.1581912747 | E87: =+E86/E$82 -> 0.1803416671 | F87: =+F86/F$82 -> 0.1685602446 | G87: =+G86/G$82 -> 0.1691926479 | J87: Business Surplus on Sales | K87: =+K86/K$82 -> 0.12 | L87: =+L86/L$82 -> 0.1673850805 | M87: =+M86/M$82 -> 0.199556354 | N87: =+N86/N$82 -> 0.1964798674 | O87: =+O86/O$82 -> 0.1884047385 | Q87: Business Surplus on Sales | R87: =+R86/R$82 -> 0.12 | S87: =+S86/S$82 -> 0.1486935764 | T87: =+T86/T$82 -> 0.1603995919 | U87: =+U86/U$82 -> 0.1392839785 | V87: =+V86/V$82 -> 0.1493026172
B88: LESS | J88: LESS | Q88: LESS
B89: Depreciation Allowance | C89: =+D77/D78 -> 12500 | D89: =$C89+$C89*(D$5-$C$5)/$C$5*$C$63 -> 12879.24757 | E89: =$C89+$C89*(E$5-$C$5)/$C$5*$C$63 -> 13054.45995 | F89: =$C89+$C89*(F$5-$C$5)/$C$5*$C$63 -> 13282.05541 | G89: =AVERAGE(D89:F89) -> 13071.92098 | J89: =+B89 -> Depreciation Allowance | K89: =+L77/L78 -> 12500 | L89: =$C89+$C89*(L$5-$C$5)/$C$5*$C$63 -> 12998.04688 | M89: =$C89+$C89*(M$5-$C$5)/$C$5*$C$63 -> 13215.42969 | N89: =$C89+$C89*(N$5-$C$5)/$C$5*$C$63 -> 13502.26676 | O89: =AVERAGE(L89:N89) -> 13238.58111 | Q89: =+B89 -> Depreciation Allowance | R89: =+S77/S78 -> 12500 | S89: =$C89+$C89*(S$5-$C$5)/$C$5*$C$63 -> 12763.03089 | T89: =$C89+$C89*(T$5-$C$5)/$C$5*$C$63 -> 12898.55212 | U89: =$C89+$C89*(U$5-$C$5)/$C$5*$C$63 -> 13071.84157 | V89: =AVERAGE(S89:U89) -> 12911.14153
B90: Business Return | C90: =+C86-C89 -> 47500 | D90: =+D86-D89 -> 75815.37492 | E90: =+E86-E89 -> 93115.13073 | F90: =+F86-F89 -> 92089.81914 | G90: =AVERAGE(D90:F90) -> 87006.77493 | J90: =+B90 -> Business Return | K90: =+K86-K89 -> 47500 | L90: =+L86-L89 -> 84032.99198 | M90: =+M86-M89 -> 109405.7137 | N90: =+N86-N89 -> 116245.7054 | O90: =AVERAGE(L90:N90) -> 103228.137 | Q90: =+B90 -> Business Return | R90: =+R86-R89 -> 47500 | S90: =+S86-S89 -> 67841.51786 | T90: =+T86-T89 -> 77529.65952 | U90: =+U86-U89 -> 69313.88674 | V90: =AVERAGE(S90:U90) -> 71561.68804
B91: Return on Sales | C91: =+C90/C82 -> 0.095 | D91: =+D90/D82 -> 0.1352204955 | E91: =+E90/E82 -> 0.1581671155 | F91: =+F90/F82 -> 0.1473133367 | G91: =+G90/G82 -> 0.1470933099 | J91: =+B91 -> Return on Sales | K91: =+K90/K82 -> 0.095 | L91: =+L90/L82 -> 0.1449625738 | M91: =+M90/M82 -> 0.1780492722 | N91: =+N90/N82 -> 0.1760331233 | O91: =+O90/O82 -> 0.1669890805 | Q91: =+B91 -> Return on Sales | R91: =+R90/R82 -> 0.095 | S91: =+S90/S82 -> 0.1251492388 | T91: =+T90/T82 -> 0.1375204212 | U91: =+U90/U82 -> 0.1171843001 | V91: =+V90/V82 -> 0.1264826497

Sheet Scratch (hidden)
E41: =SUM(E42:E46) -> 298
B42: =1 -> 1 | C42: f | D42: =IFERROR(CODE(C42),0) -> 102 | E42: =B42*D42 -> 102
B43: =B42+1 -> 2 | C43: b | D43: =IFERROR(CODE(C43),0) -> 98 | E43: =B43*D43 -> 196
B44: 3 | D44: 0 | E44: 0
B45: 4 | D45: 0 | E45: 0
B46: 5 | D46: 0 | E46: 0
B50: In evaluation mode functionality is limited.
B52: Locked | C52: 500000
B53: =IFERROR(AND(ISTEXT(Welcome!C18),LEN(Welcome!C18)>6),FALSE) -> FALSE | D53: emall len >6
B54: =IFERROR(AND(ISNUMBER(INT(Welcome!C19)),LEN(Welcome!C19)>8),FALSE) -> FALSE | C54: =IFERROR(Welcome!C19/Scratch!E57/E41,FALSE) -> FALSE | D54: code len>8 | E54: yyyymmdd=code/emailchsum/i
B55: =IFERROR(AND(ISNUMBER(C54),LEN(C54)=8,TODAY()<C55+7),FALSE) -> FALSE | C55: =IFERROR(DATE(MID(C54,1,4),MID(C54,5,2),MID(C54,7,2)),FALSE) -> FALSE | E55: yyyymmdd len=8 | G55: IF(ISNUMBER(C55),IF(C55>TODAY()+3650,2,IF(C55>TODAY()-2,1,0)),0)
C56: =IF(ISNUMBER(C55),IF(C55>TODAY()+3650,2,IF(C55>TODAY()-2,1,0)),0) -> 0 | D56: status | E56: >today+36500days=2 | J56: =I56*J57*E41 -> 0
E57: =SUM(E58:E107) -> 0 | J57: =SUM(J58:J107) -> 0
B58: =1 -> 1 | C58: =MID(Welcome!$C$18,B58,1) ->  | D58: =IFERROR(CODE(C58),0) -> 0 | E58: =B58*D58 -> 0 | G58: =1 -> 1 | H58: =MID($G$56,G58,1) ->  | I58: =IFERROR(CODE(H58),0) -> 0 | J58: =G58*I58 -> 0
B59: =B58+1 -> 2 | C59: =MID(Welcome!$C$18,B59,1) ->  | D59: 0 | E59: 0 | G59: =G58+1 -> 2 | H59: =MID($G$56,G59,1) ->  | I59: 0 | J59: 0
B60: 3 | C60: =MID(Welcome!$C$18,B60,1) ->  | D60: 0 | E60: 0 | G60: 3 | I60: 0 | J60: 0
B61: 4 | C61: =MID(Welcome!$C$18,B61,1) ->  | D61: 0 | E61: 0 | G61: 4 | I61: 0 | J61: 0
B62: 5 | C62: =MID(Welcome!$C$18,B62,1) ->  | D62: 0 | E62: 0 | G62: 5 | I62: 0 | J62: 0
B63: 6 | C63: =MID(Welcome!$C$18,B63,1) ->  | D63: 0 | E63: 0 | G63: 6 | I63: 0 | J63: 0
B64: 7 | C64: =MID(Welcome!$C$18,B64,1) ->  | D64: 0 | E64: 0 | G64: 7 | I64: 0 | J64: 0
B65: 8 | C65: =MID(Welcome!$C$18,B65,1) ->  | D65: 0 | E65: 0 | G65: 8 | I65: 0 | J65: 0
B66: 9 | C66: =MID(Welcome!$C$18,B66,1) ->  | D66: 0 | E66: 0 | G66: 9 | I66: 0 | J66: 0
B67: 10 | C67: =MID(Welcome!$C$18,B67,1) ->  | D67: 0 | E67: 0 | G67: 10 | I67: 0 | J67: 0
B68: 11 | C68: =MID(Welcome!$C$18,B68,1) ->  | D68: 0 | E68: 0 | G68: 11 | I68: 0 | J68: 0
B69: 12 | C69: =MID(Welcome!$C$18,B69,1) ->  | D69: 0 | E69: 0 | G69: 12 | I69: 0 | J69: 0
B70: 13 | C70: =MID(Welcome!$C$18,B70,1) ->  | D70: 0 | E70: 0 | G70: 13 | I70: 0 | J70: 0
B71: 14 | C71: =MID(Welcome!$C$18,B71,1) ->  | D71: 0 | E71: 0 | G71: 14 | I71: 0 | J71: 0
B72: 15 | C72: =MID(Welcome!$C$18,B72,1) ->  | D72: 0 | E72: 0 | G72: 15 | I72: 0 | J72: 0
B73: 16 | C73: =MID(Welcome!$C$18,B73,1) ->  | D73: 0 | E73: 0 | G73: 16 | I73: 0 | J73: 0
B74: 17 | C74: =MID(Welcome!$C$18,B74,1) ->  | D74: 0 | E74: 0 | G74: 17 | I74: 0 | J74: 0
B75: 18 | C75: =MID(Welcome!$C$18,B75,1) ->  | D75: 0 | E75: 0 | G75: 18 | I75: 0 | J75: 0
B76: 19 | C76: =MID(Welcome!$C$18,B76,1) ->  | D76: 0 | E76: 0 | G76: 19 | I76: 0 | J76: 0
B77: 20 | C77: =MID(Welcome!$C$18,B77,1) ->  | D77: 0 | E77: 0 | G77: 20 | I77: 0 | J77: 0
B78: 21 | C78: =MID(Welcome!$C$18,B78,1) ->  | D78: 0 | E78: 0 | G78: 21 | I78: 0 | J78: 0
B79: 22 | C79: =MID(Welcome!$C$18,B79,1) ->  | D79: 0 | E79: 0 | G79: 22 | I79: 0 | J79: 0
B80: 23 | C80: =MID(Welcome!$C$18,B80,1) ->  | D80: 0 | E80: 0 | G80: 23 | I80: 0 | J80: 0
B81: 24 | C81: =MID(Welcome!$C$18,B81,1) ->  | D81: 0 | E81: 0 | G81: 24 | I81: 0 | J81: 0
B82: 25 | C82: =MID(Welcome!$C$18,B82,1) ->  | D82: 0 | E82: 0 | G82: 25 | I82: 0 | J82: 0
B83: 26 | C83: =MID(Welcome!$C$18,B83,1) ->  | D83: 0 | E83: 0 | G83: 26 | I83: 0 | J83: 0
B84: 27 | C84: =MID(Welcome!$C$18,B84,1) ->  | D84: 0 | E84: 0 | G84: 27 | I84: 0 | J84: 0
B85: 28 | C85: =MID(Welcome!$C$18,B85,1) ->  | D85: 0 | E85: 0 | G85: 28 | I85: 0 | J85: 0
B86: 29 | C86: =MID(Welcome!$C$18,B86,1) ->  | D86: 0 | E86: 0 | G86: 29 | I86: 0 | J86: 0
B87: 30 | C87: =MID(Welcome!$C$18,B87,1) ->  | D87: 0 | E87: 0 | G87: 30 | I87: 0 | J87: 0
B88: 31 | C88: =MID(Welcome!$C$18,B88,1) ->  | D88: 0 | E88: 0 | G88: 31 | I88: 0 | J88: 0
B89: 32 | C89: =MID(Welcome!$C$18,B89,1) ->  | D89: 0 | E89: 0 | G89: 32 | I89: 0 | J89: 0
B90: 33 | C90: =MID(Welcome!$C$18,B90,1) ->  | D90: 0 | E90: 0 | G90: 33 | I90: 0 | J90: 0
B91: 34 | C91: =MID(Welcome!$C$18,B91,1) ->  | D91: 0 | E91: 0 | G91: 34 | I91: 0 | J91: 0
B92: 35 | C92: =MID(Welcome!$C$18,B92,1) ->  | D92: 0 | E92: 0 | G92: 35 | I92: 0 | J92: 0
B93: 36 | C93: =MID(Welcome!$C$18,B93,1) ->  | D93: 0 | E93: 0 | G93: 36 | I93: 0 | J93: 0
B94: 37 | C94: =MID(Welcome!$C$18,B94,1) ->  | D94: 0 | E94: 0 | G94: 37 | I94: 0 | J94: 0
B95: 38 | C95: =MID(Welcome!$C$18,B95,1) ->  | D95: 0 | E95: 0 | G95: 38 | I95: 0 | J95: 0
B96: 39 | C96: =MID(Welcome!$C$18,B96,1) ->  | D96: 0 | E96: 0 | G96: 39 | I96: 0 | J96: 0
B97: 40 | C97: =MID(Welcome!$C$18,B97,1) ->  | D97: 0 | E97: 0 | G97: 40 | I97: 0 | J97: 0
B98: 41 | C98: =MID(Welcome!$C$18,B98,1) ->  | D98: 0 | E98: 0 | G98: 41 | I98: 0 | J98: 0
B99: 42 | C99: =MID(Welcome!$C$18,B99,1) ->  | D99: 0 | E99: 0 | G99: 42 | I99: 0 | J99: 0
B100: 43 | C100: =MID(Welcome!$C$18,B100,1) ->  | D100: 0 | E100: 0 | G100: 43 | I100: 0 | J100: 0
B101: 44 | C101: =MID(Welcome!$C$18,B101,1) ->  | D101: 0 | E101: 0 | G101: 44 | I101: 0 | J101: 0
B102: 45 | C102: =MID(Welcome!$C$18,B102,1) ->  | D102: 0 | E102: 0 | G102: 45 | I102: 0 | J102: 0
B103: 46 | C103: =MID(Welcome!$C$18,B103,1) ->  | D103: 0 | E103: 0 | G103: 46 | I103: 0 | J103: 0
B104: 47 | C104: =MID(Welcome!$C$18,B104,1) ->  | D104: 0 | E104: 0 | G104: 47 | I104: 0 | J104: 0
B105: 48 | C105: =MID(Welcome!$C$18,B105,1) ->  | D105: 0 | E105: 0 | G105: 48 | I105: 0 | J105: 0
B106: 49 | C106: =MID(Welcome!$C$18,B106,1) ->  | D106: 0 | E106: 0 | G106: 49 | I106: 0 | J106: 0
B107: 50 | C107: =MID(Welcome!$C$18,B107,1) ->  | D107: 0 | E107: 0 | G107: 50 | I107: 0 | J107: 0
